{"text_format":"1","workbook":"xlsx","n_sheets":6,"sheets":["ANASAYFA","5sınıf","6sınıf ","7sınıf","8sınıf","Sayfa1"],"not_rendered":{"charts":0,"images":5,"macros":1,"external_links":1,"defined_names":9,"comments":0,"pivot_tables":0},"unopened":[],"bounds":{"document_bytes":16777216,"sheet_cells":100000,"rows_first":2000,"rows_last":500,"rows_between":2000,"halvings":0,"cell_chars":16384,"cell_head_chars":4096},"cells_cut":0,"cells_raw":0,"read":"whole","date_system":"1900"}

{"sheet":"ANASAYFA","index":0,"n_rows":0,"n_cols":0,"rows_kept":0,"cut":false,"hidden":false,"merged":[[3,3,4,16],[5,3,6,16],[7,3,8,16]]}

{"sheet":"5sınıf","index":1,"n_rows":59,"n_cols":45,"rows_kept":59,"cut":false,"hidden":false,"merged":[[39,1,39,5],[39,13,39,17],[40,1,40,5],[40,13,40,17],[34,1,34,2],[34,3,34,4],[34,5,34,9],[34,10,34,15],[34,16,34,17],[35,0,36,0],[35,1,35,2],[35,3,35,17],[36,1,36,2],[36,3,36,17],[32,16,32,17],[33,1,33,2],[33,3,33,4],[33,5,33,9],[33,10,33,15],[33,16,33,17],[31,0,34,0],[31,1,31,2],[31,3,31,4],[31,5,31,9],[31,10,31,15],[31,16,31,17],[32,1,32,2],[32,3,32,4],[32,5,32,9],[32,10,32,15],[29,0,29,1],[29,2,29,5],[29,6,29,9],[29,10,29,15],[29,16,29,17],[30,0,30,17],[27,0,27,1],[27,2,27,5],[27,6,27,9],[27,10,27,15],[27,16,27,17],[28,0,28,1],[28,2,28,5],[28,6,28,9],[28,10,28,15],[28,16,28,17],[25,0,25,17],[26,0,26,1],[26,2,26,5],[26,6,26,9],[26,10,26,15],[26,16,26,17],[24,0,24,1],[24,2,24,8],[24,9,24,11],[24,12,24,13],[24,14,24,15],[24,16,24,17],[23,0,23,1],[23,2,23,8],[23,9,23,11],[23,12,23,13],[23,14,23,15],[23,16,23,17],[21,0,22,8],[21,9,22,11],[21,12,21,17],[22,12,22,13],[22,14,22,15],[22,16,22,17],[18,0,20,1],[18,2,20,4],[18,5,18,7],[18,8,18,17],[19,5,19,7],[19,8,19,17],[20,5,20,7],[20,8,20,17],[15,0,17,1],[15,2,17,4],[15,5,15,7],[15,8,15,17],[16,5,16,7],[16,8,16,17],[17,5,17,7],[17,8,17,17],[12,0,14,1],[12,2,14,4],[12,5,12,7],[12,8,12,17],[13,5,13,7],[13,8,13,17],[14,5,14,7],[14,8,14,17],[8,8,8,17],[9,0,11,1],[9,2,11,4],[9,5,9,7],[9,8,9,17],[10,5,10,7],[10,8,10,17],[11,5,11,7],[11,8,11,17],[4,0,4,3],[4,5,4,6],[4,7,4,9],[4,11,4,12],[4,14,4,16],[5,0,5,1],[5,2,5,4],[5,5,5,17],[6,0,8,1],[6,2,8,4],[6,5,6,7],[6,8,6,17],[7,5,7,7],[7,8,7,17],[8,5,8,7],[0,0,0,17],[1,0,1,4],[1,7,1,8],[1,9,1,11],[1,12,1,17],[2,0,2,17],[3,0,3,4],[3,5,3,8],[3,9,3,10],[3,12,3,14],[3,15,3,17]]}
["2023-2024 EĞİTİM VE ÖĞRETİM YILI \nŞEHİT ABDULHAMİT KAYA İMAM HATİP ORTAOKULU",null,null,null,null,null,null,null,null,null,null,null,null,null,null,null,null,null,null,"EYLÜL","EYLÜL",{"$f":"IF(U1=$J$2,1,0)","v":0},{"$f":"V1","v":0},"Sınıf Başkan/Başkan Yardımcısı Seçimi, Sınıf Oturma Planı Hazırlama",null,null,{"$f":"MATCH(1,$W$1:$W$64,0)","v":21},{"$f":"MATCH(LARGE($W$1:$W$64,1),$W$1:$W$64,0)","v":25},null,null,null,"/ A",1,"GÖKBEN OKTAN",null,null,null,null,null,null,"EYLÜL","2023-09-01",{"$f":"EOMONTH(AP1,0)","v":"2023-09-30"},null,{"$f":"VLOOKUP($J$2,AO1:AP10,2,0)","v":"2024-01-01"}]
["REHBERLİK HİZMETLERİ",null,null,null,null,5,"/ C","SINIFI",null,"OCAK",null,null," AYI ÇALIŞMA RAPORU",null,null,null,null,null,null,"EKİM","EYLÜL",{"$f":"IF(U2=$J$2,1,0)","v":0},{"$f":"IF(V2=1,W1+1,0)","v":0},"Öğrenci Bilgi Formu Uygulaması",null,null,null,{"$f":"\"x\"&$AA$1&\":x\"&$AB$1","v":"x21:x25"},{"$f":"\"y\"&$AA$1&\":y\"&$AB$1","v":"y21:y25"},{"$f":"\"z\"&$AA$1&\":z\"&$AB$1","v":"z21:z25"},null,"/ B",2,"DEMET CAN",null,null,null,null,null,null,"EKİM",{"$f":"EDATE(AP1,1)","v":"2023-10-01"},{"$f":"EOMONTH(AP2,0)","v":"2023-10-31"},null,{"$f":"IFERROR(IF((AS1+1)<=VLOOKUP($J$2,$AO$1:$AQ$10,3,0),AS1+1,\"\"),\"\")","v":"2024-01-02"}]
[null,null,null,null,null,null,null,null,null,null,null,null,null,null,null,null,null,null,null,"KASIM","EYLÜL",0,{"$f":"IF(V3=1,W2+1,0)","v":0},"Salgın Hastalık - Psikoeğitim Programı Öğrenci Oturumları",null,null,null,null,null,null,null,"/ C",3,"DERYA ÇINAR",null,null,null,null,null,null,"KASIM",{"$f":"EDATE(AP2,1)","v":"2023-11-01"},"2023-11-30",null,{"$f":"IFERROR(IF((AS2+1)<=VLOOKUP($J$2,$AO$1:$AQ$10,3,0),AS2+1,\"\"),\"\")","v":"2024-01-03"}]
["SINIF/ŞUBE REHBER  ÖĞRETMENİNİN ADI SOYADI    ",null,null,null,null,"ADEM DİŞÇİ",null,null,null,"RAPOR NO",null,null,"RAPOR TARİHİ",null,null,null,null,null,null,"ARALIK","EYLÜL",0,0,"GELİN TANIŞ OLALIM","Okulun bölümlerini ve okulda çalışan personeli tanır.","Okula ve Çevreye Uyum",null,null,null,null,null,"/ D",4,"TUBA YÜCEL",null,null,null,null,null,null,"ARALIK","2023-12-01","2023-12-31",null,"2024-01-04"]
["SINIF",null,null,null,{"$f":"CONCATENATE(F2,G2)","v":"5/ C"},"SINIF MEVCUDU",null,"KIZ",null,null,null,"ERKEK",null,null,"TOPLAM",null,null,{"$f":"SUM(K5+N5)","v":0},null,"OCAK","EYLÜL",0,0,"GEZDİM, GÖRDÜM,YAZDIM","Okulun yakınındaki çevreyi tanır.","Okula ve Çevreye Uyum",null,null,null,null,null,"/ E",5,"EMİNE METİN",null,null,null,null,null,null,"OCAK","2024-01-01","2024-01-31",null,"2024-01-05"]
["SIRA",null,"TARİH",null,null,"ETKİNLİK ÇALIŞMALARI",null,null,null,null,null,null,null,null,null,null,null,null,null,"ŞUBAT","EKİM",0,0,"KURALLAR OLMADAN ASLA","Sınıf kurallarının oluşturulmasına katkı sağlar.","Okula ve Çevreye Uyum",null,null,null,null,null,"/ F",6,"ADEM DİŞÇİ",null,null,null,null,null,null,"ŞUBAT","2024-02-01","2024-02-29",null,"2024-01-06"]
[1,null,null,null,null,"ETKİNLİĞİN ADI",null,null,null,null,null,null,null,null,null,null,null,null,null,"MART","EKİM",0,0,"Sınıf Rehberlik Planının ve Sınıf Rehberlik Dosyasının Hazırlanması",null,null,null,null,null,null,null,null,7,"EBRU BÜLBÜL",null,null,null,null,null,null,"MART","2024-03-01","2024-03-31",null,"2024-01-07"]
[null,null,null,null,null,"KAZANIM",null,null,null,null,null,null,null,null,null,null,null,null,null,"NİSAN","EKİM",0,0,"RENKLERLE RİSKLER","Okul ve çevresinde risk oluşturabilecek durum ve ortamlara karşı kendini korur.","Okula ve Çevreye Uyum",null,null,null,null,null,null,8,"ERDOĞAN YILMAZ",null,null,null,null,null,null,"NİSAN","2024-04-01","2024-04-30",null,"2024-01-08"]
[null,null,null,null,null,"YETERLİLİK ALANI",null,null,null,null,null,null,null,null,null,null,null,null,null,"MAYIS","EKİM",0,0,"YARDIM BALONLARIM","Kimden, nereden, ne zaman ve nasıl yardım isteyebileceğini bilir. (*)","Kişisel Güvenliği Sağlama",null,null,null,null,null,null,9,"YUSUF KALKAN",null,null,null,null,null,null,"MAYIS","2024-05-01","2024-05-31",null,"2024-01-09"]
[2,null,null,null,null,"ETKİNLİĞİN ADI",null,null,null,null,null,null,null,null,null,null,null,null,null,"HAZİRAN","EKİM",0,0,"KURALLAR İYİ Kİ VAR!","Okul ve sınıf kurallarına uyulmadığında ortaya çıkabilecek sonuçları tartışır.","Okula ve Okulun Çevresine Uyum",null,null,null,null,null,null,10,"İRFAN KARA",null,null,null,null,null,null,"HAZİRAN","2024-06-01","2024-06-30",null,"2024-01-10"]
[null,null,null,null,null,"KAZANIM",null,null,null,null,null,null,null,null,null,null,null,null,null,null,"KASIM",0,0,"HAYALİMDEKİ OKUL","Okul ve sınıf kurallarına uyar.","Okula ve Okulun Çevresine Uyum",null,null,null,null,null,null,11,"EVİN KARAKAYA",null,null,null,null,null,null,null,null,null,null,"2024-01-11"]
[null,null,null,null,null,"YETERLİLİK ALANI",null,null,null,null,null,null,null,null,null,null,null,null,null,null,"KASIM",0,0,"VAR MI YOK MU ?","Okulun eğitsel imkânları hakkında bilgi edinir.","Okula ve Okulun Çevresine Uyum",null,null,null,null,null,null,12,"AYNUR ÖZDEMİR",null,null,null,null,null,null,null,null,null,null,"2024-01-12"]
[3,null,null,null,null,"ETKİNLİĞİN ADI",null,null,null,null,null,null,null,null,null,null,null,null,null,null,"KASIM",0,0,"ARA TATİL",null,null,null,null,null,null,null,null,13,"AYŞE PİRİNÇÇİ",null,null,null,null,null,null,null,null,null,null,"2024-01-13"]
[null,null,null,null,null,"KAZANIM",null,null,null,null,null,null,null,null,null,null,null,null,null,null,"KASIM",0,0,"SANATTA VE SPORDA HOŞLANDIKLARIMI KEŞFEDİYORUM!","Sanatsal ve sportif etkinliklerden hoşlandıklarını ayırt eder.","Kariyer Farkındalığı",null,null,null,null,null,null,14,"NERİMAN YÜKSEL",null,null,null,null,null,null,null,null,null,null,"2024-01-14"]
[null,null,null,null,null,"YETERLİLİK ALANI",null,null,null,null,null,null,null,null,null,null,null,null,null,null,"KASIM",0,0,"Sınıf Risk Haritasının Oluşturulması",null,null,null,null,null,null,null,null,15,"SUNADÜĞÜNYURDU",null,null,null,null,null,null,null,null,null,null,"2024-01-15"]
[4,null,null,null,null,"ETKİNLİĞİN ADI",null,null,null,null,null,null,null,null,null,null,null,null,null,null,"ARALIK",0,0,"HAZIRLANIYORUM, BAŞARIYORUM","Okul hazırlığına ilişkin sorumluluklarını üstlenir.","Eğitsel Planlama ve Başarı",null,null,null,null,null,null,16,"YASİN HAKAN",null,null,null,null,null,null,null,null,null,null,"2024-01-16"]
[null,null,null,null,null,"KAZANIM",null,null,null,null,null,null,null,null,null,null,null,null,null,null,"ARALIK",0,0,"ELLERİMİZ EL ELE","Okulunun ve sınıfının bir üyesi olduğunu fark eder.","Okula ve Okulun Çevresine Uyum",null,null,null,null,null,null,17,"DERYA ALİOĞLU",null,null,null,null,null,null,null,null,null,null,"2024-01-17"]
[null,null,null,null,null,"YETERLİLİK ALANI",null,null,null,null,null,null,null,null,null,null,null,null,null,null,"ARALIK",0,0,"BENİM HAYALİM VAR","Akademik gelişimi için amaç oluşturur.","Eğitsel Planlama ve Başarı",null,null,null,null,null,null,18,"MÜMİN KELEŞ",null,null,null,null,null,null,null,null,null,null,"2024-01-18"]
[5,null,null,null,null,"ETKİNLİĞİN ADI",null,null,null,null,null,null,null,null,null,null,null,null,null,null,"ARALIK",0,0,"BİLEĞİMDEKİ GÜÇ/ SAHİP OLDUKLARIM","Sahip olduğu karakter güçlerini fark eder.","Benlik Farkındalığı",null,null,null,null,null,null,19,"AYŞE AKYOL",null,null,null,null,null,null,null,null,null,null,"2024-01-19"]
[null,null,null,null,null,"KAZANIM",null,null,null,null,null,null,null,null,null,null,null,null,null,null,"ARALIK",0,0,"SENİNLE ÇOK İYİ ANLAŞACAĞIZ","Arkadaşlık kurmada karakter güçlerini kullanır.","Kişiler Arası Beceriler",null,null,null,null,null,null,20,"LEYLA TEPESU",null,null,null,null,null,null,null,null,null,null,"2024-01-20"]
[null,null,null,null,null,"YETERLİLİK ALANI",null,null,null,null,null,null,null,null,null,null,null,null,null,null,"OCAK",1,1,"ANLAMAK İÇİN DİNLİYORUM","İyi bir dinleyici olur.","Kişiler Arası Beceriler",null,null,null,null,null,null,21,"YELİZ FİTOZ",null,null,null,null,null,null,null,null,null,null,{"$f":"IFERROR(IF((AS20+1)<=VLOOKUP($J$2,$AO$1:$AQ$10,3,0),AS20+1,\"\"),\"\")","v":"2024-01-21"}]
["UYGULANAN TEST VE ANKETLER",null,null,null,null,null,null,null,null,"UYGULAMA TARİHİ",null,null,"UYGULANAN ÖĞRENCİ SAYISI",null,null,null,null,null,null,null,"OCAK",1,2,"NASIL ANLATSAM","Beden dilinin iletişimdeki önemini fark eder.","Kişiler Arası Beceriler",null,null,null,null,null,null,22,"GÜLİSTAN TEKTAŞ",null,null,null,null,null,null,null,null,null,null,"2024-01-22"]
[null,null,null,null,null,null,null,null,null,null,null,null,"KIZ",null," ERKEK",null,"TOPLAM",null,null,null,"OCAK",1,3,"ETKİNLİK AKVARYUMUM","Sanatsal ve sportif etkinliklerden başarabildiklerini ayırt eder.","Kariyer Farkındalığı",null,null,null,null,null,null,23,"CEYDA AZAKLI",null,null,null,null,null,null,null,null,null,null,"2024-01-23"]
[1,null,null,null,null,null,null,null,null,null,null,null,null,null,null,null,{"$f":"SUM(M24:P24)","v":0},null,null,null,"OCAK",1,4,"İlk Dönem Sınıf Rehberlik Faaliyet Raporu Hazırlanması",null,null,null,null,null,null,null,null,24,"ZEHRA DURDU",null,null,null,null,null,null,null,null,null,null,"2024-01-24"]
[2,null,null,null,null,null,null,null,null,null,null,null,null,null,null,null,null,null,null,null,"OCAK",1,5,"YARI YIL TATİLİ",null,null,null,null,null,null,null,null,25,"SAİT AFŞAR",null,null,null,null,null,null,null,null,null,null,"2024-01-25"]
["VELİLERLE YAPILAN GÖRÜŞMELER",null,null,null,null,null,null,null,null,null,null,null,null,null,null,null,null,null,null,null,"ŞUBAT",0,0,"YARI YIL TATİLİ",null,null,null,null,null,null,null,null,26,"HİLAL SEZER",null,null,null,null,null,null,null,null,null,null,"2024-01-26"]
["SIRA",null,"VELİ",null,null,null,"ÖĞRENCİSİ",null,null,null,"GÖRÜŞME KONUSU",null,null,null,null,null,"TARİH",null,null,null,"ŞUBAT",0,0,"GELDİM, GÖRDÜM, ÜRETTİM","Çalışma ve üretmenin insan yaşamındaki önemini fark eder.","Kariyer Farkındalığı",null,null,null,null,null,null,27,null,null,null,null,null,null,null,null,null,null,null,{"$f":"IFERROR(IF((AS26+1)<=VLOOKUP($J$2,$AO$1:$AQ$10,3,0),AS26+1,\"\"),\"\")","v":"2024-01-27"}]
[1,null,null,null,null,null,null,null,null,null,null,null,null,null,null,null,null,null,null,null,"ŞUBAT",0,0,"MESLEĞİMLE VAR OLUYORUM","Bir meslek sahibi olmanın kendisi ve toplum için önemini fark eder.","Kariyer Farkındalığı",null,null,null,null,null,null,28,null,null,null,null,null,null,null,null,null,null,null,"2024-01-28"]
[2,null,null,null,null,null,null,null,null,null,null,null,null,null,null,null,null,null,null,null,"ŞUBAT",0,0,"YAŞAM YOLUM","Geleceği hayal ederek yaşam amaçları oluşturur.","Karar Verme",null,null,null,null,null,null,29,null,null,null,null,null,null,null,null,null,null,null,"2024-01-29"]
[3,null,null,null,null,null,null,null,null,null,null,null,null,null,null,null,null,null,null,null,"MART",0,0,"SÜRDÜRÜLEBİLİR ARKADAŞLIKLAR","Arkadaşlık ilişkilerini sürdürme konusunda yapabileceklerini bilir.","Kişilerarası Beceriler",null,null,null,null,null,null,30,null,null,null,null,null,null,null,null,null,null,null,"2024-01-30"]
["ÖĞRENCİLERLE YAPILAN GÖRÜŞMELER",null,null,null,null,null,null,null,null,null,null,null,null,null,null,null,null,null,null,null,"MART",0,0,"DUYGU SANDALYESİ","Değişen duygu durumlarını fark eder.","Duyguları Anlama ve Yönetme",null,null,null,null,null,null,31,null,null,null,null,null,null,null,null,null,null,null,"2024-01-31"]
["ÖĞRENCİNİN","SIRA",null,"NO",null," ADI VE SOYADI",null,null,null,null,"GÖRÜŞME KONUSU",null,null,null,null,null,"TARİH",null,null,null,"MART",0,0,"BENİ DİNLİYOR MUSUN?","Başkalarının duygu ve düşüncelerini anlamak için etkili dinleme stratejilerini\nkullanır.","Duyguları Anlama ve Yönetme",null,null,null,null,null,null,32,null,null,null,null,null,null,null,null,null,null,null,""]
[null,1,null,null,null,null,null,null,null,null,null,null,null,null,null,null,null,null,null,null,"MART",0,0,"GÖZLÜĞÜM ŞEKİL","Başkalarının bakış açısının kendi bakış açısından farklı olabileceğini kabul\neder.","Benlik Farkındalığı",null,null,null,null,null,null,33,null,null,null,null,null,null,null,null,null,null,null,""]
[null,2,null,null,null,null,null,null,null,null,null,null,null,null,null,null,null,null,null,null,"NİSAN",0,0,"FARKLILIKLAR HARMONİSİ","Kültürel farklılıklara duyarlı bir bakış açısı geliştirir.","Kişilerarası Beceriler",null,null,null,null,null,null,34]
[null,3,null,null,null,null,null,null,null,null,null,null,null,null,null,null,null,null,null,null,"NİSAN",0,0,"ARA TATİL",null,null,null,null,null,null,null,null,35]
["DİĞER ÇALIŞMALAR",1,null,null,null,null,null,null,null,null,null,null,null,null,null,null,null,null,null,null,"NİSAN",0,0,"NEZAKET BALONLARIM","Yardım etme becerilerini kullanır.","Kişilerarası Beceriler",null,null,null,null,null,null,36]
[null,2,null,null,null,null,null,null,null,null,null,null,null,null,null,null,null,null,null,null,"NİSAN",0,0,"BAŞKA BAŞKA BÜYÜYORUZ","Büyüme ve gelişme sürecinde bireysel farklılıklar olduğunu bilir.","Benlik Farkındalığı",null,null,null,null,null,null,37]
[null,null,null,null,null,null,null,null,null,null,null,null,null,null,null,null,null,null,null,null,"NİSAN",0,0,"BÜYÜME EVRENİ","Büyüme ve gelişmenin yaşamın doğal bir parçası olduğunu örneklerle\naçıklar.","Benlik Farkındalığı",null,null,null,null,null,null,38]
[null,null,null,null,null,null,null,null,null,null,null,null,null,null,null,null,null,null,null,null,"MAYIS",0,0,"SANAL GERÇEKLİK","Sanal arkadaşlığı, arkadaşlık ilişkileri kapsamında sorgular.","Kişilerarası Beceriler",null,null,null,null,null,null,39]
[null,{"$f":"F4","v":"ADEM DİŞÇİ"},null,null,null,null,null,null,null,null,null,null,null,"Hasan AKPINAR",null,null,null,null,null,null,"MAYIS",0,0,"SANAL GERÇEKLİK","Sanal arkadaşlığı, arkadaşlık ilişkileri kapsamında sorgular.","Kişilerarası Beceriler",null,null,null,null,null,null,40]
[null,"Sınıf/Şube Rehber Öğretmeni",null,null,null,null,null,null,null,null,null,null,null,"Okul Müdürü",null,null,null,null,null,null,"MAYIS",0,0,"ÇATIŞMALAR HEP VAR","Çatışmanın ve anlaşmazlıkların yaşamın bir parçası olduğunu fark eder.","Kişilerarası Beceriler",null,null,null,null,null,null,41]
[null,null,null,null,null,null,null,null,null,null,null,null,null,null,null,null,null,null,null,null,"MAYIS",0,0,"HOŞÇA KAL ARKADAŞIM!","Gerektiğinde arkadaşlığını sonlandırır.","Kişilerarası Beceriler",null,null,null,null,null,null,42]
[null,null,null,null,null,null,null,null,null,null,null,null,null,null,null,null,null,null,null,null,"MAYIS",0,0,"Rehberlik İhtiyaçları Belirleme Anketi (RİBA) Uygulaması",null,null,null,null,null,null,null,null,43]
[null,null,null,null,null,null,null,null,null,null,null,null,null,null,null,null,null,null,null,null,"HAZİRAN",0,0,"AKADEMİK AMAÇ MERDİVENİM","Akademik amaçlarını gerçekleştirme konusunda kendini değerlendirir.","Eğitsel Planlama ve Başarı",null,null,null,null,null,null,44]
[null,null,null,null,null,null,null,null,null,null,null,null,null,null,null,null,null,null,null,null,"HAZİRAN",0,0,"KARARIMIN BELİRLEYİCİLERİ","Karar verme sürecini etkileyen faktörleri açıklar.","Karar Verme",null,null,null,null,null,null,45]
[null,null,null,null,null,null,null,null,null,null,null,null,null,null,null,null,null,null,null,null,"HAZİRAN",0,0,"KARAR VERİYORUM DERSLERİMİ SEÇİYORUM","Ders seçiminde karar verme becerisini kullanır.","Kariyer Planlama",null,null,null,null,null,null,46]
[null,null,null,null,null,null,null,null,null,null,null,null,null,null,null,null,null,null,null,null,"HAZİRAN",0,0,"RPD Hizmetleri Yürütme Komisyonu Sene Sonu Toplantısı",null,null,null,null,null,null,null,null,47]
[null,null,null,null,null,null,null,null,null,null,null,null,null,null,null,null,null,null,null,null,"HAZİRAN",0,0,"İkinci Dönem Sınıf Rehberlik Faaliyet Raporu Hazırlanması",null,null,null,null,null,null,null,null,48]
[null,null,null,null,null,null,null,null,null,null,null,null,null,null,null,null,null,null,null,null,null,null,null,null,null,null,null,null,null,null,null,null,49]
[null,null,null,null,null,null,null,null,null,null,null,null,null,null,null,null,null,null,null,null,null,null,null,null,null,null,null,null,null,null,null,null,50]
[null,null,null,null,null,null,null,null,null,null,null,null,null,null,null,null,null,null,null,null,null,null,null,null,null,null,null,null,null,null,null,null,51]
[null,null,null,null,null,null,null,null,null,null,null,null,null,null,null,null,null,null,null,null,null,null,null,null,null,null,null,null,null,null,null,null,52]
[null,null,null,null,null,null,null,null,null,null,null,null,null,null,null,null,null,null,null,null,null,null,null,null,null,null,null,null,null,null,null,null,53]
[null,null,null,null,null,null,null,null,null,null,null,null,null,null,null,null,null,null,null,null,null,null,null,null,null,null,null,null,null,null,null,null,54]
[null,null,null,null,null,null,null,null,null,null,null,null,null,null,null,null,null,null,null,null,null,null,null,null,null,null,null,null,null,null,null,null,55]
[null,null,null,null,null,null,null,null,null,null,null,null,null,null,null,null,null,null,null,null,null,null,null,null,null,null,null,null,null,null,null,null,56]
[null,null,null,null,null,null,null,null,null,null,null,null,null,null,null,null,null,null,null,null,null,null,null,null,null,null,null,null,null,null,null,null,57]
[null,null,null,null,null,null,null,null,null,null,null,null,null,null,null,null,null,null,null,null,null,null,null,null,null,null,null,null,null,null,null,null,58]
[null,null,null,null,null,null,null,null,null,null,null,null,null,null,null,null,null,null,null,null,null,null,null,null,null,null,null,null,null,null,null,null,59]

{"sheet":"6sınıf ","index":2,"n_rows":59,"n_cols":45,"rows_kept":59,"cut":false,"hidden":false,"merged":[[0,0,0,17],[1,0,1,4],[1,7,1,8],[1,9,1,11],[1,12,1,17],[2,0,2,17],[3,0,3,4],[3,5,3,8],[3,9,3,10],[3,12,3,14],[3,15,3,17],[4,0,4,3],[4,5,4,6],[4,7,4,9],[4,11,4,12],[4,14,4,16],[5,0,5,1],[5,2,5,4],[5,5,5,17],[6,0,8,1],[6,2,8,4],[6,5,6,7],[6,8,6,17],[7,5,7,7],[7,8,7,17],[8,5,8,7],[12,0,14,1],[12,2,14,4],[12,5,12,7],[12,8,12,17],[13,5,13,7],[13,8,13,17],[14,5,14,7],[14,8,14,17],[8,8,8,17],[9,0,11,1],[9,2,11,4],[9,5,9,7],[9,8,9,17],[10,5,10,7],[10,8,10,17],[11,5,11,7],[11,8,11,17],[18,0,20,1],[18,2,20,4],[18,5,18,7],[18,8,18,17],[19,5,19,7],[19,8,19,17],[20,5,20,7],[20,8,20,17],[15,0,17,1],[15,2,17,4],[15,5,15,7],[15,8,15,17],[16,5,16,7],[16,8,16,17],[17,5,17,7],[17,8,17,17],[23,0,23,1],[23,2,23,8],[23,9,23,11],[23,12,23,13],[23,14,23,15],[23,16,23,17],[21,0,22,8],[21,9,22,11],[21,12,21,17],[22,12,22,13],[22,14,22,15],[22,16,22,17],[25,0,25,17],[26,0,26,1],[26,2,26,5],[26,6,26,9],[26,10,26,15],[26,16,26,17],[24,0,24,1],[24,2,24,8],[24,9,24,11],[24,12,24,13],[24,14,24,15],[24,16,24,17],[29,0,29,1],[29,2,29,5],[29,6,29,9],[29,10,29,15],[29,16,29,17],[30,0,30,17],[27,0,27,1],[27,2,27,5],[27,6,27,9],[27,10,27,15],[27,16,27,17],[28,0,28,1],[28,2,28,5],[28,6,28,9],[28,10,28,15],[28,16,28,17],[35,0,36,0],[35,1,35,2],[35,3,35,17],[36,1,36,2],[36,3,36,17],[32,16,32,17],[33,1,33,2],[33,3,33,4],[33,5,33,9],[33,10,33,15],[33,16,33,17],[31,0,34,0],[31,1,31,2],[31,3,31,4],[31,5,31,9],[31,10,31,15],[31,16,31,17],[32,1,32,2],[32,3,32,4],[32,5,32,9],[32,10,32,15],[39,1,39,5],[39,13,39,17],[40,1,40,5],[40,13,40,17],[34,1,34,2],[34,3,34,4],[34,5,34,9],[34,10,34,15],[34,16,34,17]]}
["2023-2024 EĞİTİM VE ÖĞRETİM YILI \nŞEHİT ABDULHAMİT KAYA İMAM HATİP ORTAOKULU",null,null,null,null,null,null,null,null,null,null,null,null,null,null,null,null,null,null,"EYLÜL","EYLÜL",{"$f":"IF(U1=$J$2,1,0)","v":0},{"$f":"V1","v":0},"Sınıf Başkan/Başkan Yardımcısı Seçimi, Sınıf Oturma Planı Hazırlama",null,null,{"$f":"MATCH(1,$W$1:$W$64,0)","v":16},{"$f":"MATCH(LARGE($W$1:$W$64,1),$W$1:$W$64,0)","v":20},null,null,null,"/ A",1,"GÖKBEN OKTAN",null,null,null,null,null,null,"EYLÜL","2023-09-01",{"$f":"EOMONTH(AP1,0)","v":"2023-09-30"},null,{"$f":"VLOOKUP($J$2,AO1:AP10,2,0)","v":"2023-12-01"}]
["REHBERLİK HİZMETLERİ",null,null,null,null,6,"/ A","SINIFI",null,"ARALIK",null,null," AYI ÇALIŞMA RAPORU",null,null,null,null,null,null,"EKİM","EYLÜL",{"$f":"IF(U2=$J$2,1,0)","v":0},{"$f":"IF(V2=1,W1+1,0)","v":0},"Öğrenci Bilgi Formu Uygulaması",null,null,null,{"$f":"\"x\"&$AA$1&\":x\"&$AB$1","v":"x16:x20"},{"$f":"\"y\"&$AA$1&\":y\"&$AB$1","v":"y16:y20"},{"$f":"\"z\"&$AA$1&\":z\"&$AB$1","v":"z16:z20"},null,"/ B",2,"DEMET CAN",null,null,null,null,null,null,"EKİM",{"$f":"EDATE(AP1,1)","v":"2023-10-01"},{"$f":"EOMONTH(AP2,0)","v":"2023-10-31"},null,{"$f":"IFERROR(IF((AS1+1)<=VLOOKUP($J$2,$AO$1:$AQ$10,3,0),AS1+1,\"\"),\"\")","v":"2023-12-02"}]
[null,null,null,null,null,null,null,null,null,null,null,null,null,null,null,null,null,null,null,"KASIM","EYLÜL",0,{"$f":"IF(V3=1,W2+1,0)","v":0},"Salgın Hastalık - Psikoeğitim Programı Öğrenci Oturumları",null,null,null,null,null,null,null,"/ C",3,"DERYA ÇINAR",null,null,null,null,null,null,"KASIM",{"$f":"EDATE(AP2,1)","v":"2023-11-01"},"2023-11-30",null,{"$f":"IFERROR(IF((AS2+1)<=VLOOKUP($J$2,$AO$1:$AQ$10,3,0),AS2+1,\"\"),\"\")","v":"2023-12-03"}]
["SINIF/ŞUBE REHBER  ÖĞRETMENİNİN ADI SOYADI    ",null,null,null,null,"EMİNE METİN",null,null,null,"RAPOR NO",null,null,"RAPOR TARİHİ",null,null,null,null,null,null,"ARALIK","EYLÜL",0,0,"ÜSTÜME İYİLİK SAĞLIK","İyilik hâlini destekleyen davranışları yaşamında uygular.","Kişisel Güvenliği Sağlam",null,null,null,null,null,"/ D",4,"TUBA YÜCEL",null,null,null,null,null,null,"ARALIK","2023-12-01","2023-12-31",null,"2023-12-04"]
["SINIF",null,null,null,{"$f":"CONCATENATE(F2,G2)","v":"6/ A"},"SINIF MEVCUDU",null,"KIZ",null,null,null,"ERKEK",null,null,"TOPLAM",null,null,{"$f":"SUM(K5+N5)","v":0},null,"OCAK","EYLÜL",0,0,"ZAMAN YELPAZESİ","Zamanını ihtiyaçları ve sorumlulukları çerçevesinde planlar.","Eğitsel Planlama ve Başarı",null,null,null,null,null,"/ E",5,"EMİNE METİN",null,null,null,null,null,null,"OCAK","2024-01-01","2024-01-31",null,"2023-12-05"]
["SIRA",null,"TARİH",null,null,"ETKİNLİK ÇALIŞMALARI",null,null,null,null,null,null,null,null,null,null,null,null,null,"ŞUBAT","EKİM",0,0,"Sınıf Rehberlik Planının ve Sınıf Rehberlik Dosyasının Hazırlanması",null,null,null,null,null,null,null,"/ F",6,"ADEM DİŞÇİ",null,null,null,null,null,null,"ŞUBAT","2024-02-01","2024-02-29",null,"2023-12-06"]
[1,null,null,null,null,"ETKİNLİĞİN ADI",null,null,null,null,null,null,null,null,null,null,null,null,null,"MART","EKİM",0,0,"HAZIRSAK BAŞLAYALIM","Okula hazırlıklı gelme ile akademik gelişimi arasında bağ kurar.","Akademik Anlayış ve Sorumluluk",null,null,null,null,null,null,7,"EBRU BÜLBÜL",null,null,null,null,null,null,"MART","2024-03-01","2024-03-31",null,"2023-12-07"]
[null,null,null,null,null,"KAZANIM",null,null,null,null,null,null,null,null,null,null,null,null,null,"NİSAN","EKİM",0,0,"YEŞEREN TOHUMLAR","Başarmak için çalışmanın gerekliliğini fark eder.","Akademik Anlayış ve Sorumluluk",null,null,null,null,null,null,8,"ERDOĞAN YILMAZ",null,null,null,null,null,null,"NİSAN","2024-04-01","2024-04-30",null,"2023-12-08"]
[null,null,null,null,null,"YETERLİLİK ALANI",null,null,null,null,null,null,null,null,null,null,null,null,null,"MAYIS","EKİM",0,0,"KARAKTER GÜÇLERİM VE YAŞAMIM","Karakter güçleriyle kendi yaşamı arasında bağ kurar.","Benlik Farkındalığı",null,null,null,null,null,null,9,"YUSUF KALKAN",null,null,null,null,null,null,"MAYIS","2024-05-01","2024-05-31",null,"2023-12-09"]
[2,null,null,null,null,"ETKİNLİĞİN ADI",null,null,null,null,null,null,null,null,null,null,null,null,null,"HAZİRAN","EKİM",0,0,"GÖKKUŞAĞININ ALTINDAKİ HAZİNE","Takım çalışmalarının kişisel gelişimine etkilerini fark eder.","Kişiler Arası Beceriler",null,null,null,null,null,null,10,"İRFAN KARA",null,null,null,null,null,null,"HAZİRAN","2024-06-01","2024-06-30",null,"2023-12-10"]
[null,null,null,null,null,"KAZANIM",null,null,null,null,null,null,null,null,null,null,null,null,null,null,"KASIM",0,0,"YOLUMDAKİ ENGELLER","Öğrenme etkinliklerine katılmasını engelleyen düşünce ve davranışlarını\nfark eder.","Akademilk Anlayış ve Sorumluluk",null,null,null,null,null,null,11,"EVİN KARAKAYA",null,null,null,null,null,null,null,null,null,null,"2023-12-11"]
[null,null,null,null,null,"YETERLİLİK ALANI",null,null,null,null,null,null,null,null,null,null,null,null,null,null,"KASIM",0,0,"DUYGULARIMIZ RENGARENK","Duyguların insan yaşamı için önemini kabul eder.","Duyguları Anlama Ve Yönetme",null,null,null,null,null,null,12,"AYNUR ÖZDEMİR",null,null,null,null,null,null,null,null,null,null,"2023-12-12"]
[3,null,null,null,null,"ETKİNLİĞİN ADI",null,null,null,null,null,null,null,null,null,null,null,null,null,null,"KASIM",0,0,"ARA TATİL",null,null,null,null,null,null,null,null,13,"AYŞE PİRİNÇÇİ",null,null,null,null,null,null,null,null,null,null,"2023-12-13"]
[null,null,null,null,null,"KAZANIM",null,null,null,null,null,null,null,null,null,null,null,null,null,null,"KASIM",0,0,"NASIL SÖYLESEM Kİ?","Duygularını uygun biçimde ifade etme alışkanlığı kazanır.","Duyguları Anlama Ve Yönetme",null,null,null,null,null,null,14,"NERİMAN YÜKSEL",null,null,null,null,null,null,null,null,null,null,"2023-12-14"]
[null,null,null,null,null,"YETERLİLİK ALANI",null,null,null,null,null,null,null,null,null,null,null,null,null,null,"KASIM",0,0,"Sınıf Risk Haritasının Oluşturulması",null,null,null,null,null,null,null,null,15,"SUNADÜĞÜNYURDU",null,null,null,null,null,null,null,null,null,null,"2023-12-15"]
[4,null,null,null,null,"ETKİNLİĞİN ADI",null,null,null,null,null,null,null,null,null,null,null,null,null,null,"ARALIK",1,1,"ÇATIŞMA ÇÖZMEK BİZİM İŞİMİZ/ÇATIŞMALARIMI KENDİM ÇÖZEBİLİRİM","Çatışma çözme becerilerini kullanır.","Karar Verme",null,null,null,null,null,null,16,"YASİN HAKAN",null,null,null,null,null,null,null,null,null,null,"2023-12-16"]
[null,null,null,null,null,"KAZANIM",null,null,null,null,null,null,null,null,null,null,null,null,null,null,"ARALIK",1,2,"DUYGULARIMI FARK EDİYORUM","Durum ve olayların bireylerin duygusuna etkisini fark eder.","Duyguları Anlama Ve Yönetme",null,null,null,null,null,null,17,"DERYA ALİOĞLU",null,null,null,null,null,null,null,null,null,null,"2023-12-17"]
[null,null,null,null,null,"YETERLİLİK ALANI",null,null,null,null,null,null,null,null,null,null,null,null,null,null,"ARALIK",1,3,"PAYLAŞ, DİNLİYORUM!","Sınıf tartışmalarında dinleyici ve katılımcı rolü üstlenir.","Kişiler Arası Beceriler",null,null,null,null,null,null,18,"MÜMİN KELEŞ",null,null,null,null,null,null,null,null,null,null,"2023-12-18"]
[5,null,null,null,null,"ETKİNLİĞİN ADI",null,null,null,null,null,null,null,null,null,null,null,null,null,null,"ARALIK",1,4,"NEDEN İLGİLENİYORUM?","Hoşlandığı etkinliklerin ilgilerinin bir göstergesi olabileceğini fark eder.","Kariyer Farkındalığı",null,null,null,null,null,null,19,"AYŞE AKYOL",null,null,null,null,null,null,null,null,null,null,"2023-12-19"]
[null,null,null,null,null,"KAZANIM",null,null,null,null,null,null,null,null,null,null,null,null,null,null,"ARALIK",1,5,"HAYDİ ANLAT İLGİLERİNİ!","İlgileri ile dersleri ilişkilendirir.","Kariyer Hazırlığı",null,null,null,null,null,null,20,"LEYLA TEPESU",null,null,null,null,null,null,null,null,null,null,"2023-12-20"]
[null,null,null,null,null,"YETERLİLİK ALANI",null,null,null,null,null,null,null,null,null,null,null,null,null,null,"OCAK",0,0,"YAŞAM AMAÇLARIMI PLANLIYORUM","Yaşam amaçlarına ulaşmak için bir eylem planı hazırlar.","Karar Verme",null,null,null,null,null,null,21,"YELİZ FİTOZ",null,null,null,null,null,null,null,null,null,null,{"$f":"IFERROR(IF((AS20+1)<=VLOOKUP($J$2,$AO$1:$AQ$10,3,0),AS20+1,\"\"),\"\")","v":"2023-12-21"}]
["UYGULANAN TEST VE ANKETLER",null,null,null,null,null,null,null,null,"UYGULAMA TARİHİ",null,null,"UYGULANAN ÖĞRENCİ SAYISI",null,null,null,null,null,null,null,"OCAK",0,0,"DUYGU KAPTANI","Yaşadığı yoğun duyguları yönetir.","Duyguları Anlama Ve Yönetme",null,null,null,null,null,null,22,"GÜLİSTAN TEKTAŞ",null,null,null,null,null,null,null,null,null,null,"2023-12-22"]
[null,null,null,null,null,null,null,null,null,null,null,null,"KIZ",null," ERKEK",null,"TOPLAM",null,null,null,"OCAK",0,0,"İYİ OLUŞ ORMANIM","İyi oluşunu destekleyen duyguların yaşamındaki önemini fark eder.","Duyguları Anlama Ve Yönetme",null,null,null,null,null,null,23,"CEYDA AZAKLI",null,null,null,null,null,null,null,null,null,null,"2023-12-23"]
[1,null,null,null,null,null,null,null,null,null,null,null,null,null,null,null,{"$f":"SUM(M24:P24)","v":0},null,null,null,"OCAK",0,0,"İlk Dönem Sınıf Rehberlik Faaliyet Raporu Hazırlanması",null,null,null,null,null,null,null,null,24,"ZEHRA DURDU",null,null,null,null,null,null,null,null,null,null,"2023-12-24"]
[2,null,null,null,null,null,null,null,null,null,null,null,null,null,null,null,null,null,null,null,"OCAK",0,0,"YARI YIL TATİLİ",null,null,null,null,null,null,null,null,25,"SAİT AFŞAR",null,null,null,null,null,null,null,null,null,null,"2023-12-25"]
["VELİLERLE YAPILAN GÖRÜŞMELER",null,null,null,null,null,null,null,null,null,null,null,null,null,null,null,null,null,null,null,"ŞUBAT",0,0,"YARI YIL TATİLİ",null,null,null,null,null,null,null,null,26,"HİLAL SEZER",null,null,null,null,null,null,null,null,null,null,"2023-12-26"]
["SIRA",null,"VELİ",null,null,null,"ÖĞRENCİSİ",null,null,null,"GÖRÜŞME KONUSU",null,null,null,null,null,"TARİH",null,null,null,"ŞUBAT",0,0,"KATILIYORUM, ÖĞRENİYORUM, GELİŞİYORUM","Okul içindeki ve dışındaki eğitsel ve sosyal etkinliklere katılmanın gelişimine\nkatkılarını değerlendirir.","Akademik Anlayış ve Sorumluluk",null,null,null,null,null,null,27,null,null,null,null,null,null,null,null,null,null,null,{"$f":"IFERROR(IF((AS26+1)<=VLOOKUP($J$2,$AO$1:$AQ$10,3,0),AS26+1,\"\"),\"\")","v":"2023-12-27"}]
[1,null,null,null,null,null,null,null,null,null,null,null,null,null,null,null,null,null,null,null,"ŞUBAT",0,0,"BAŞARISIZLIĞIMIN BAŞARI ÖYKÜSÜ","Eğitsel etkinliklerdeki başarısızlıkların öğrenme sürecinin bir parçası olduğunu kabul eder.","Eğitsel Planlama ve Başarı",null,null,null,null,null,null,28,null,null,null,null,null,null,null,null,null,null,null,"2023-12-28"]
[2,null,null,null,null,null,null,null,null,null,null,null,null,null,null,null,null,null,null,null,"ŞUBAT",0,0,"ÖĞRENİYORUM, UYGULUYORUM, BAŞARIYORUM","Öğrenme sürecinde deneyimlediği başarısızlıkların üstesinden gelmek için farklı\nçözüm yolları dener.","Eğitsel Planlama ve Başarı",null,null,null,null,null,null,29,null,null,null,null,null,null,null,null,null,null,null,"2023-12-29"]
[3,null,null,null,null,null,null,null,null,null,null,null,null,null,null,null,null,null,null,null,"MART",0,0,"ENGELLERE TAKILMIYORUM","Kişisel hakların korunması ve kişisel güvenliğin sağlanması için yönergeleri\nizler.","Kişisel Güvenliği Sağlama",null,null,null,null,null,null,30,null,null,null,null,null,null,null,null,null,null,null,"2023-12-30"]
["ÖĞRENCİLERLE YAPILAN GÖRÜŞMELER",null,null,null,null,null,null,null,null,null,null,null,null,null,null,null,null,null,null,null,"MART",0,0,"HAYIR DİYORUM, KENDİMİ KORUYORUM!","Kişisel güvenliği için “Hayır!” demenin önemine inanır.","Kişisel Güvenliği Sağlama",null,null,null,null,null,null,31,null,null,null,null,null,null,null,null,null,null,null,"2023-12-31"]
["ÖĞRENCİNİN","SIRA",null,"NO",null," ADI VE SOYADI",null,null,null,null,"GÖRÜŞME KONUSU",null,null,null,null,null,"TARİH",null,null,null,"MART",0,0,"GELİŞİM TAKVİMİM","Fiziksel ve duygusal değişimini fark eder.","Benlik Farkındalığı",null,null,null,null,null,null,32,null,null,null,null,null,null,null,null,null,null,null,""]
[null,1,null,null,null,null,null,null,null,null,null,null,null,null,null,null,null,null,null,null,"MART",0,0,"KARAR AĞACI","Karar verme sürecinde alternatif düşünceler geliştirmenin önemini açıklar.","Karar Verme",null,null,null,null,null,null,33,null,null,null,null,null,null,null,null,null,null,null,""]
[null,2,null,null,null,null,null,null,null,null,null,null,null,null,null,null,null,null,null,null,"MART",0,0,"BAŞARILARIM HAVADA UÇUŞUYOR","Başarılı olduğu durumlar için kendini takdir eder.","Benlik Farkındalığı",null,null,null,null,null,null,34]
[null,3,null,null,null,null,null,null,null,null,null,null,null,null,null,null,null,null,null,null,"NİSAN",0,0,"YETENEKLİ BALIĞIM","Yapabildiği etkinliklerin, yeteneklerinin bir göstergesi olabileceğini fark\neder.","Kariyer Farkındalığı",null,null,null,null,null,null,35]
["DİĞER ÇALIŞMALAR",1,null,null,null,null,null,null,null,null,null,null,null,null,null,null,null,null,null,null,"NİSAN",0,0,"ARA TATİL",null,null,null,null,null,null,null,null,36]
[null,2,null,null,null,null,null,null,null,null,null,null,null,null,null,null,null,null,null,null,"NİSAN",0,0,"YETENEK ÇEMBERLERİ1/ YETENEK ÇEMBERLERİ2","Derslerin etkinliklerini yetenekleriyle ilişkilendirir.","Kariyer Farkındalığı",null,null,null,null,null,null,37]
[null,null,null,null,null,null,null,null,null,null,null,null,null,null,null,null,null,null,null,null,"NİSAN",0,0,"ETKİLİYORUM, ETKİLENİYORUM!","Davranışlarının kendisine ve çevresine etkilerini fark eder","Benlik Farkındalığı",null,null,null,null,null,null,38]
[null,null,null,null,null,null,null,null,null,null,null,null,null,null,null,null,null,null,null,null,"MAYIS",0,0,"İLGİLERİMİZ VE MESLEKLER","Kendi ilgileri ile mesleklerin özelliklerini ilişkilendirir.","Kariyer Farkındalığı",null,null,null,null,null,null,39]
[null,{"$f":"F4","v":"EMİNE METİN"},null,null,null,null,null,null,null,null,null,null,null,"Hasan AKPINAR",null,null,null,null,null,null,"MAYIS",0,0,"DEĞİŞEBİLEN BEN","Kendini tanımlayan özelliklerin değişebilir olduğunu fark eder.","Benlik Farkındalığı",null,null,null,null,null,null,40]
[null,"Sınıf/Şube Rehber Öğretmeni",null,null,null,null,null,null,null,null,null,null,null,"Okul Müdürü",null,null,null,null,null,null,"MAYIS",0,0,"ZENGİN KİTAPLIĞIM","İnsanların farklı karakter güçlerine sahip olmasının kişiler arası ilişkilere\nzenginlik katacağını bilir.","Kişiler Arası Beceriler",null,null,null,null,null,null,41]
[null,null,null,null,null,null,null,null,null,null,null,null,null,null,null,null,null,null,null,null,"MAYIS",0,0,"SORUMLULUK AYRACIM","Çalışarak bir şey üretmenin sorumluluğunu alır.","Kariyer Farkındalığı",null,null,null,null,null,null,42]
[null,null,null,null,null,null,null,null,null,null,null,null,null,null,null,null,null,null,null,null,"MAYIS",0,0,"Rehberlik İhtiyaçları Belirleme Anketi (RİBA) Uygulaması",null,null,null,null,null,null,null,null,43]
[null,null,null,null,null,null,null,null,null,null,null,null,null,null,null,null,null,null,null,null,"HAZİRAN",0,0,null,null,null,null,null,null,null,null,null,44]
[null,null,null,null,null,null,null,null,null,null,null,null,null,null,null,null,null,null,null,null,"HAZİRAN",0,0,"MESLEKLERE GÖTÜREN DERSLER","Derslerin mesleklerle ilişkisini açıklar.","Kariyer Farkındalığı",null,null,null,null,null,null,45]
[null,null,null,null,null,null,null,null,null,null,null,null,null,null,null,null,null,null,null,null,"HAZİRAN",0,0,"NELERİ HATIRLIYORUM?","Sınıf rehberlik programı etkinliklerine/yaşantılarına ilişkin duygu ve\ndüşüncelerini yansıtır.","Ortak",null,null,null,null,null,null,46]
[null,null,null,null,null,null,null,null,null,null,null,null,null,null,null,null,null,null,null,null,"HAZİRAN",0,0,"RPD Hizmetleri Yürütme Komisyonu Sene Sonu Toplantısı",null,null,null,null,null,null,null,null,47]
[null,null,null,null,null,null,null,null,null,null,null,null,null,null,null,null,null,null,null,null,"HAZİRAN",0,0,"İkinci Dönem Sınıf Rehberlik Faaliyet Raporu Hazırlanması",null,null,null,null,null,null,null,null,48]
[null,null,null,null,null,null,null,null,null,null,null,null,null,null,null,null,null,null,null,null,null,null,null,null,null,null,null,null,null,null,null,null,49]
[null,null,null,null,null,null,null,null,null,null,null,null,null,null,null,null,null,null,null,null,null,null,null,null,null,null,null,null,null,null,null,null,50]
[null,null,null,null,null,null,null,null,null,null,null,null,null,null,null,null,null,null,null,null,null,null,null,null,null,null,null,null,null,null,null,null,51]
[null,null,null,null,null,null,null,null,null,null,null,null,null,null,null,null,null,null,null,null,null,null,null,null,null,null,null,null,null,null,null,null,52]
[null,null,null,null,null,null,null,null,null,null,null,null,null,null,null,null,null,null,null,null,null,null,null,null,null,null,null,null,null,null,null,null,53]
[null,null,null,null,null,null,null,null,null,null,null,null,null,null,null,null,null,null,null,null,null,null,null,null,null,null,null,null,null,null,null,null,54]
[null,null,null,null,null,null,null,null,null,null,null,null,null,null,null,null,null,null,null,null,null,null,null,null,null,null,null,null,null,null,null,null,55]
[null,null,null,null,null,null,null,null,null,null,null,null,null,null,null,null,null,null,null,null,null,null,null,null,null,null,null,null,null,null,null,null,56]
[null,null,null,null,null,null,null,null,null,null,null,null,null,null,null,null,null,null,null,null,null,null,null,null,null,null,null,null,null,null,null,null,57]
[null,null,null,null,null,null,null,null,null,null,null,null,null,null,null,null,null,null,null,null,null,null,null,null,null,null,null,null,null,null,null,null,58]
[null,null,null,null,null,null,null,null,null,null,null,null,null,null,null,null,null,null,null,null,null,null,null,null,null,null,null,null,null,null,null,null,59]

{"sheet":"7sınıf","index":3,"n_rows":59,"n_cols":45,"rows_kept":59,"cut":false,"hidden":false,"merged":[[0,0,0,17],[1,0,1,4],[1,7,1,8],[1,9,1,11],[1,12,1,17],[2,0,2,17],[3,0,3,4],[3,5,3,8],[3,9,3,10],[3,12,3,14],[3,15,3,17],[4,0,4,3],[4,5,4,6],[4,7,4,9],[4,11,4,12],[4,14,4,16],[5,0,5,1],[5,2,5,4],[5,5,5,17],[6,0,8,1],[6,2,8,4],[6,5,6,7],[6,8,6,17],[7,5,7,7],[7,8,7,17],[8,5,8,7],[12,0,14,1],[12,2,14,4],[12,5,12,7],[12,8,12,17],[13,5,13,7],[13,8,13,17],[14,5,14,7],[14,8,14,17],[8,8,8,17],[9,0,11,1],[9,2,11,4],[9,5,9,7],[9,8,9,17],[10,5,10,7],[10,8,10,17],[11,5,11,7],[11,8,11,17],[18,0,20,1],[18,2,20,4],[18,5,18,7],[18,8,18,17],[19,5,19,7],[19,8,19,17],[20,5,20,7],[20,8,20,17],[15,0,17,1],[15,2,17,4],[15,5,15,7],[15,8,15,17],[16,5,16,7],[16,8,16,17],[17,5,17,7],[17,8,17,17],[23,0,23,1],[23,2,23,8],[23,9,23,11],[23,12,23,13],[23,14,23,15],[23,16,23,17],[21,0,22,8],[21,9,22,11],[21,12,21,17],[22,12,22,13],[22,14,22,15],[22,16,22,17],[25,0,25,17],[26,0,26,1],[26,2,26,5],[26,6,26,9],[26,10,26,15],[26,16,26,17],[24,0,24,1],[24,2,24,8],[24,9,24,11],[24,12,24,13],[24,14,24,15],[24,16,24,17],[29,0,29,1],[29,2,29,5],[29,6,29,9],[29,10,29,15],[29,16,29,17],[30,0,30,17],[27,0,27,1],[27,2,27,5],[27,6,27,9],[27,10,27,15],[27,16,27,17],[28,0,28,1],[28,2,28,5],[28,6,28,9],[28,10,28,15],[28,16,28,17],[35,0,36,0],[35,1,35,2],[35,3,35,17],[36,1,36,2],[36,3,36,17],[32,16,32,17],[33,1,33,2],[33,3,33,4],[33,5,33,9],[33,10,33,15],[33,16,33,17],[31,0,34,0],[31,1,31,2],[31,3,31,4],[31,5,31,9],[31,10,31,15],[31,16,31,17],[32,1,32,2],[32,3,32,4],[32,5,32,9],[32,10,32,15],[39,1,39,5],[39,13,39,17],[40,1,40,5],[40,13,40,17],[34,1,34,2],[34,3,34,4],[34,5,34,9],[34,10,34,15],[34,16,34,17]]}
["2023-2024 EĞİTİM VE ÖĞRETİM YILI \nŞEHİT ABDULHAMİT KAYA İMAM HATİP ORTAOKULU",null,null,null,null,null,null,null,null,null,null,null,null,null,null,null,null,null,null,"EYLÜL","EYLÜL",{"$f":"IF(U1=$J$2,1,0)","v":0},{"$f":"V1","v":0},"Sınıf Başkan/Başkan Yardımcısı Seçimi, Sınıf Oturma Planı Hazırlama",null,null,{"$f":"MATCH(1,$W$1:$W$64,0)","v":26},{"$f":"MATCH(LARGE($W$1:$W$64,1),$W$1:$W$64,0)","v":29},null,null,null,"/ A",1,"GÖKBEN OKTAN",null,null,null,null,null,null,"EYLÜL","2023-09-01",{"$f":"EOMONTH(AP1,0)","v":"2023-09-30"},null,{"$f":"VLOOKUP($J$2,AO1:AP10,2,0)","v":"2024-02-01"}]
["REHBERLİK HİZMETLERİ",null,null,null,null,7,"/ A","SINIFI",null,"ŞUBAT",null,null," AYI ÇALIŞMA RAPORU",null,null,null,null,null,null,"EKİM","EYLÜL",{"$f":"IF(U2=$J$2,1,0)","v":0},{"$f":"IF(V2=1,W1+1,0)","v":0},"Öğrenci Bilgi Formu Uygulaması",null,null,null,{"$f":"\"x\"&$AA$1&\":x\"&$AB$1","v":"x26:x29"},{"$f":"\"y\"&$AA$1&\":y\"&$AB$1","v":"y26:y29"},{"$f":"\"z\"&$AA$1&\":z\"&$AB$1","v":"z26:z29"},null,"/ B",2,"DEMET CAN",null,null,null,null,null,null,"EKİM",{"$f":"EDATE(AP1,1)","v":"2023-10-01"},{"$f":"EOMONTH(AP2,0)","v":"2023-10-31"},null,{"$f":"IFERROR(IF((AS1+1)<=VLOOKUP($J$2,$AO$1:$AQ$10,3,0),AS1+1,\"\"),\"\")","v":"2024-02-02"}]
[null,null,null,null,null,null,null,null,null,null,null,null,null,null,null,null,null,null,null,"KASIM","EYLÜL",0,{"$f":"IF(V3=1,W2+1,0)","v":0},"Salgın Hastalık - Psikoeğitim Programı Öğrenci Oturumları",null,null,null,null,null,null,null,"/ C",3,"DERYA ÇINAR",null,null,null,null,null,null,"KASIM",{"$f":"EDATE(AP2,1)","v":"2023-11-01"},"2023-11-30",null,{"$f":"IFERROR(IF((AS2+1)<=VLOOKUP($J$2,$AO$1:$AQ$10,3,0),AS2+1,\"\"),\"\")","v":"2024-02-03"}]
["SINIF/ŞUBE REHBER  ÖĞRETMENİNİN ADI SOYADI    ",null,null,null,null,"YUSUF KALKAN",null,null,null,"RAPOR NO",null,null,"RAPOR TARİHİ",null,null,null,null,null,null,"ARALIK","EYLÜL",0,0,"YENİ DURUM DEĞİŞEN DUYGUM","Yeni durumlar ve değişimlerle ilgili duygularını ifade eder.","Duygularını Anlama Ve Yönetme",null,null,null,null,null,"/ D",4,"TUBA YÜCEL",null,null,null,null,null,null,"ARALIK","2023-12-01","2023-12-31",null,"2024-02-04"]
["SINIF",null,null,null,{"$f":"CONCATENATE(F2,G2)","v":"7/ A"},"SINIF MEVCUDU",null,"KIZ",null,null,null,"ERKEK",null,null,"TOPLAM",null,null,{"$f":"SUM(K5+N5)","v":0},null,"OCAK","EYLÜL",0,0,"ETKİLİ ZAMAN YETKİLİ BEN","Zamanını etkili kullanmanın akademik gelişimine etkisini açıklar.","Eğitsel Planlama Ve Başarı",null,null,null,null,null,"/ E",5,"EMİNE METİN",null,null,null,null,null,null,"OCAK","2024-01-01","2024-01-31",null,"2024-02-05"]
["SIRA",null,"TARİH",null,null,"ETKİNLİK ÇALIŞMALARI",null,null,null,null,null,null,null,null,null,null,null,null,null,"ŞUBAT","EKİM",0,0,"Sınıf Rehberlik Planının ve Sınıf Rehberlik Dosyasının Hazırlanması",null,null,null,null,null,null,null,"/ F",6,"ADEM DİŞÇİ",null,null,null,null,null,null,"ŞUBAT","2024-02-01","2024-02-29",null,"2024-02-06"]
[1,null,null,null,null,"ETKİNLİĞİN ADI",null,null,null,null,null,null,null,null,null,null,null,null,null,"MART","EKİM",0,0,"ZAMAN VE BAŞARI YOLCULUĞU","Zamanı etkili kullanmanın akademik gelişimine katkısını açıklar.","Eğitsel Planlama Ve Başarı",null,null,null,null,null,null,7,"EBRU BÜLBÜL",null,null,null,null,null,null,"MART","2024-03-01","2024-03-31",null,"2024-02-07"]
[null,null,null,null,null,"KAZANIM",null,null,null,null,null,null,null,null,null,null,null,null,null,"NİSAN","EKİM",0,0,"TARAFINI SEÇ","Eğitsel çabanın akademik hedeflere ulaşmadaki etkisini değerlendirir.","Akademik Anlayış Ve Sorumluluk",null,null,null,null,null,null,8,"ERDOĞAN YILMAZ",null,null,null,null,null,null,"NİSAN","2024-04-01","2024-04-30",null,"2024-02-08"]
[null,null,null,null,null,"YETERLİLİK ALANI",null,null,null,null,null,null,null,null,null,null,null,null,null,"MAYIS","EKİM",0,0,"ZAMANINDA TAMAMLA","Akademik çalışmalarını zamanında bitirmede kararlı olur.","Eğitsel Planlama Ve Başarı",null,null,null,null,null,null,9,"YUSUF KALKAN",null,null,null,null,null,null,"MAYIS","2024-05-01","2024-05-31",null,"2024-02-09"]
[2,null,null,null,null,"ETKİNLİĞİN ADI",null,null,null,null,null,null,null,null,null,null,null,null,null,"HAZİRAN","EKİM",0,0,"İLGİMİ DE YETENEĞİMİ DE TANIYORUM","Yapabildiği ve hoşlandığı etkinliklere dayalı olarak ilgi ve yeteneklerine\nörnekler verir.","Kariyer Farkındalığı",null,null,null,null,null,null,10,"İRFAN KARA",null,null,null,null,null,null,"HAZİRAN","2024-06-01","2024-06-30",null,"2024-02-10"]
[null,null,null,null,null,"KAZANIM",null,null,null,null,null,null,null,null,null,null,null,null,null,null,"KASIM",0,0,"İLGİ HOBİ TABUSU/ SENİN YILDIZIN","İlgi ve hobilerini ayırt eder.","Kariyer Farkındalığı",null,null,null,null,null,null,11,"EVİN KARAKAYA",null,null,null,null,null,null,null,null,null,null,"2024-02-11"]
[null,null,null,null,null,"YETERLİLİK ALANI",null,null,null,null,null,null,null,null,null,null,null,null,null,null,"KASIM",0,0,"DURUMLAR DEĞİŞİK","Akademik çalışmaları ile ilgili değişen durumlara uygun davranışlar sergiler.","Akademik Anlayış Ve Sorumluluk",null,null,null,null,null,null,12,"AYNUR ÖZDEMİR",null,null,null,null,null,null,null,null,null,null,"2024-02-12"]
[3,null,null,null,null,"ETKİNLİĞİN ADI",null,null,null,null,null,null,null,null,null,null,null,null,null,null,"KASIM",0,0,"ARA TATİL",null,null,null,null,null,null,null,null,13,"AYŞE PİRİNÇÇİ",null,null,null,null,null,null,null,null,null,null,"2024-02-13"]
[null,null,null,null,null,"KAZANIM",null,null,null,null,null,null,null,null,null,null,null,null,null,null,"KASIM",0,0,"NEREDE BU MESLEKLER?","Mesleklerle ilgili bilgi kaynaklarına ulaşır.","Kariyer Farkındalığı",null,null,null,null,null,null,14,"NERİMAN YÜKSEL",null,null,null,null,null,null,null,null,null,null,"2024-02-14"]
[null,null,null,null,null,"YETERLİLİK ALANI",null,null,null,null,null,null,null,null,null,null,null,null,null,null,"KASIM",0,0,"Sınıf Risk Haritasının Oluşturulması",null,null,null,null,null,null,null,null,15,"SUNADÜĞÜNYURDU",null,null,null,null,null,null,null,null,null,null,"2024-02-15"]
[4,null,null,null,null,"ETKİNLİĞİN ADI",null,null,null,null,null,null,null,null,null,null,null,null,null,null,"ARALIK",0,0,"SENİN HAKKIN BENİM HAKKIM","Her bireyin hak ve sorumlulukları olduğunu bilir.","Kişiler Arası İlişkiler",null,null,null,null,null,null,16,"YASİN HAKAN",null,null,null,null,null,null,null,null,null,null,"2024-02-16"]
[null,null,null,null,null,"KAZANIM",null,null,null,null,null,null,null,null,null,null,null,null,null,null,"ARALIK",0,0,"ÖĞRENME ANAHTARI!","Kendisi için verimli öğrenme ve ders çalışma koşullarını oluşturur.","Eğitsel Planlama Ve Başarı",null,null,null,null,null,null,17,"DERYA ALİOĞLU",null,null,null,null,null,null,null,null,null,null,"2024-02-17"]
[null,null,null,null,null,"YETERLİLİK ALANI",null,null,null,null,null,null,null,null,null,null,null,null,null,null,"ARALIK",0,0,"ÖĞRENME İSTASYONLARI","Öğrenme etkinliklerine yönelik duygu ve düşüncelerini ifade eder.","Akademik Anlayış Ve Sorumluluk",null,null,null,null,null,null,18,"MÜMİN KELEŞ",null,null,null,null,null,null,null,null,null,null,"2024-02-18"]
[5,null,null,null,null,"ETKİNLİĞİN ADI",null,null,null,null,null,null,null,null,null,null,null,null,null,null,"ARALIK",0,0,"BÜYÜK GÜÇ: TAKDİR","Arkadaşlarının olumlu özelliklerini takdir eder.","Kişiler Arası Beceriler",null,null,null,null,null,null,19,"AYŞE AKYOL",null,null,null,null,null,null,null,null,null,null,"2024-02-19"]
[null,null,null,null,null,"KAZANIM",null,null,null,null,null,null,null,null,null,null,null,null,null,null,"ARALIK",0,0,"YAPICI ÇÖZÜM MERKEZİ","Arkadaşlık ilişkilerinde yaşadığı sorunları yapıcı yollarla çözer.","Kişiler Arası Beceriler",null,null,null,null,null,null,20,"LEYLA TEPESU",null,null,null,null,null,null,null,null,null,null,"2024-02-20"]
[null,null,null,null,null,"YETERLİLİK ALANI",null,null,null,null,null,null,null,null,null,null,null,null,null,null,"OCAK",0,0,"AKTİF DİNLEYİCİYİM","Derste dinleme, not alma ve soru sorma gibi etkinlikleri kullanır.","Eğitsel Planlama",null,null,null,null,null,null,21,"YELİZ FİTOZ",null,null,null,null,null,null,null,null,null,null,{"$f":"IFERROR(IF((AS20+1)<=VLOOKUP($J$2,$AO$1:$AQ$10,3,0),AS20+1,\"\"),\"\")","v":"2024-02-21"}]
["UYGULANAN TEST VE ANKETLER",null,null,null,null,null,null,null,null,"UYGULAMA TARİHİ",null,null,"UYGULANAN ÖĞRENCİ SAYISI",null,null,null,null,null,null,null,"OCAK",0,0,"BENİM GÜÇLÜ BELLEĞİM","Belleğini güçlendirecek stratejileri açıklar.","Eğitsel Planlama Ve Başarı",null,null,null,null,null,null,22,"GÜLİSTAN TEKTAŞ",null,null,null,null,null,null,null,null,null,null,"2024-02-22"]
[null,null,null,null,null,null,null,null,null,null,null,null,"KIZ",null," ERKEK",null,"TOPLAM",null,null,null,"OCAK",0,0,"SLOGANIMLA HAZIRIM","Sınavlara hazırlanmayı etkileyen faktörleri açıklar.","Eğitsel Planlama Ve Başarı",null,null,null,null,null,null,23,"CEYDA AZAKLI",null,null,null,null,null,null,null,null,null,null,"2024-02-23"]
[1,null,null,null,null,null,null,null,null,null,null,null,null,null,null,null,{"$f":"SUM(M24:P24)","v":0},null,null,null,"OCAK",0,0,"İlk Dönem Sınıf Rehberlik Faaliyet Raporu Hazırlanması",null,null,null,null,null,null,null,null,24,"ZEHRA DURDU",null,null,null,null,null,null,null,null,null,null,"2024-02-24"]
[2,null,null,null,null,null,null,null,null,null,null,null,null,null,null,null,null,null,null,null,"OCAK",0,0,"YARI YIL TATİLİ",null,null,null,null,null,null,null,null,25,"SAİT AFŞAR",null,null,null,null,null,null,null,null,null,null,"2024-02-25"]
["VELİLERLE YAPILAN GÖRÜŞMELER",null,null,null,null,null,null,null,null,null,null,null,null,null,null,null,null,null,null,null,"ŞUBAT",1,1,"YARI YIL TATİLİ",null,null,null,null,null,null,null,null,26,"HİLAL SEZER",null,null,null,null,null,null,null,null,null,null,"2024-02-26"]
["SIRA",null,"VELİ",null,null,null,"ÖĞRENCİSİ",null,null,null,"GÖRÜŞME KONUSU",null,null,null,null,null,"TARİH",null,null,null,"ŞUBAT",1,2,"PASTADAKİ PAYIM","Sınavlara hazırlanma davranışını gözden geçirir.","Eğitsel Planlama Ve Başarı",null,null,null,null,null,null,27,null,null,null,null,null,null,null,null,null,null,null,{"$f":"IFERROR(IF((AS26+1)<=VLOOKUP($J$2,$AO$1:$AQ$10,3,0),AS26+1,\"\"),\"\")","v":"2024-02-27"}]
[1,null,null,null,null,null,null,null,null,null,null,null,null,null,null,null,null,null,null,null,"ŞUBAT",1,3,"İPUCUNU ALIYORUM, TEPKİMİ VERİYORUM","Sosyal ipuçlarını yorumlayarak uygun tepkiler verir.","Kişiler Arası Beceriler",null,null,null,null,null,null,28,null,null,null,null,null,null,null,null,null,null,null,"2024-02-28"]
[2,null,null,null,null,null,null,null,null,null,null,null,null,null,null,null,null,null,null,null,"ŞUBAT",1,4,"GELİŞEN BEN'İN ÖYKÜSÜ","Bilişsel yeterlilikleri ve kişilik özelliklerini geliştirebileceğine inanır.","Benlik Farkındalığı",null,null,null,null,null,null,29,null,null,null,null,null,null,null,null,null,null,null,"2024-02-29"]
[3,null,null,null,null,null,null,null,null,null,null,null,null,null,null,null,null,null,null,null,"MART",0,0,"BİNBİR ÇEŞİT ZORBALIK","Zorbalık ve türlerini bilir.","Kişisel Güvenliği Sağlama",null,null,null,null,null,null,30,null,null,null,null,null,null,null,null,null,null,null,""]
["ÖĞRENCİLERLE YAPILAN GÖRÜŞMELER",null,null,null,null,null,null,null,null,null,null,null,null,null,null,null,null,null,null,null,"MART",0,0,"GÜCÜNÜ GÖR ZORBALIĞI YEN!","Zorbalıkla baş etme yollarını kullanır.","Kişisel Güvenliği Sağlama",null,null,null,null,null,null,31,null,null,null,null,null,null,null,null,null,null,null,""]
["ÖĞRENCİNİN","SIRA",null,"NO",null," ADI VE SOYADI",null,null,null,null,"GÖRÜŞME KONUSU",null,null,null,null,null,"TARİH",null,null,null,"MART",0,0,"YETENEKLER SAHADA","Yetenekleriyle derslerin etkinliklerini ilişkilendirir.","Kariyer Hazırlığı",null,null,null,null,null,null,32,null,null,null,null,null,null,null,null,null,null,null,""]
[null,1,null,null,null,null,null,null,null,null,null,null,null,null,null,null,null,null,null,null,"MART",0,0,"YETENEKLERİMLE MESLEKLERİN PEŞİNDEYİM","Yetenekleriyle mesleklerin özelliklerini ilişkilendirir.","Kariyer Hazırlığı",null,null,null,null,null,null,33,null,null,null,null,null,null,null,null,null,null,null,""]
[null,2,null,null,null,null,null,null,null,null,null,null,null,null,null,null,null,null,null,null,"MART",0,0,"KONTROL BENDE, ÇEVRİMİÇİ GÜVENDE","Bilişim teknolojileri kullanımında kendini yönetir.","Kişisel Güvenliği Sağlama",null,null,null,null,null,null,34]
[null,3,null,null,null,null,null,null,null,null,null,null,null,null,null,null,null,null,null,null,"NİSAN",0,0,"KARAKTER GÜÇLERİ TERAZİSİ","Karakter güçleriyle iyi oluşu arasında bağ kurar.","Benlik Farkındalığı",null,null,null,null,null,null,35]
["DİĞER ÇALIŞMALAR",1,null,null,null,null,null,null,null,null,null,null,null,null,null,null,null,null,null,null,"NİSAN",0,0,"ARA TATİL",null,null,null,null,null,null,null,null,36]
[null,2,null,null,null,null,null,null,null,null,null,null,null,null,null,null,null,null,null,null,"NİSAN",0,0,"GÜCÜME GÜÇ KATIYORUM","Sahip olduğu karakter güçlerini geliştirmek için çaba gösterir.","Benlik Farkındalığı",null,null,null,null,null,null,37]
[null,null,null,null,null,null,null,null,null,null,null,null,null,null,null,null,null,null,null,null,"NİSAN",0,0,"BASKIYI YÖNETME ZİNCİRİ","Baskı altında serinkanlı davranışlar sergiler.","Kişiler Arası Beceriler",null,null,null,null,null,null,38]
[null,null,null,null,null,null,null,null,null,null,null,null,null,null,null,null,null,null,null,null,"MAYIS",0,0,"ÜÇ MUCİZEVİ GÜÇ","Bir ürün ortaya koymanın zaman, çaba ve sabır gerektirdiğini fark eder.","Benlik Farkındalığı",null,null,null,null,null,null,39]
[null,{"$f":"F4","v":"YUSUF KALKAN"},null,null,null,null,null,null,null,null,null,null,null,"Hasan AKPINAR",null,null,null,null,null,null,"MAYIS",0,0,"ÜÇ MUCİZEVİ GÜÇ","Bir ürün ortaya koymanın zaman, çaba ve sabır gerektirdiğini fark eder.","Benlik Farkındalığı",null,null,null,null,null,null,40]
[null,"Sınıf/Şube Rehber Öğretmeni",null,null,null,null,null,null,null,null,null,null,null,"Okul Müdürü",null,null,null,null,null,null,"MAYIS",0,0,"NE YAPTIĞIMIN FARKINDAYIM","Başarı ve başarısızlık durumlarını açıklama biçimlerini değerlendirir.","Benlik Farkındalığı",null,null,null,null,null,null,41]
[null,null,null,null,null,null,null,null,null,null,null,null,null,null,null,null,null,null,null,null,"MAYIS",0,0,"OKULUM HAYAT DOLU","Okulun kendisi için önemini açıklar.","Okula Ve Okulun Çevresine Uyum",null,null,null,null,null,null,42]
[null,null,null,null,null,null,null,null,null,null,null,null,null,null,null,null,null,null,null,null,"MAYIS",0,0,"Rehberlik İhtiyaçları Belirleme Anketi (RİBA) Uygulaması",null,null,null,null,null,null,null,null,43]
[null,null,null,null,null,null,null,null,null,null,null,null,null,null,null,null,null,null,null,null,"HAZİRAN",0,0,"KARAR VERME SÜRECİMİ NELER ETKİLEMİŞ","Bu zamana kadar verdiği kararları karar verme sürecini etkileyen faktörler\naçısından değerlendirir.","Karar Verme",null,null,null,null,null,null,44]
[null,null,null,null,null,null,null,null,null,null,null,null,null,null,null,null,null,null,null,null,"HAZİRAN",0,0,"KARAR VERME MERDİVENİ/KARAR VERMEK, ZOR OLMASA GEREK","Karar verme basamaklarını açıklar.","Karar Verme",null,null,null,null,null,null,45]
[null,null,null,null,null,null,null,null,null,null,null,null,null,null,null,null,null,null,null,null,"HAZİRAN",0,0,"NELERİ HATIRLIYORUM?","Sınıf rehberlik programı etkinliklerine/yaşantılarına ilişkin duygu ve\ndüşüncelerini yansıtır.","Ortak ",null,null,null,null,null,null,46]
[null,null,null,null,null,null,null,null,null,null,null,null,null,null,null,null,null,null,null,null,"HAZİRAN",0,0,"RPD Hizmetleri Yürütme Komisyonu Sene Sonu Toplantısı",null,null,null,null,null,null,null,null,47]
[null,null,null,null,null,null,null,null,null,null,null,null,null,null,null,null,null,null,null,null,"HAZİRAN",0,0,"İkinci Dönem Sınıf Rehberlik Faaliyet Raporu Hazırlanması",null,null,null,null,null,null,null,null,48]
[null,null,null,null,null,null,null,null,null,null,null,null,null,null,null,null,null,null,null,null,null,null,null,null,null,null,null,null,null,null,null,null,49]
[null,null,null,null,null,null,null,null,null,null,null,null,null,null,null,null,null,null,null,null,null,null,null,null,null,null,null,null,null,null,null,null,50]
[null,null,null,null,null,null,null,null,null,null,null,null,null,null,null,null,null,null,null,null,null,null,null,null,null,null,null,null,null,null,null,null,51]
[null,null,null,null,null,null,null,null,null,null,null,null,null,null,null,null,null,null,null,null,null,null,null,null,null,null,null,null,null,null,null,null,52]
[null,null,null,null,null,null,null,null,null,null,null,null,null,null,null,null,null,null,null,null,null,null,null,null,null,null,null,null,null,null,null,null,53]
[null,null,null,null,null,null,null,null,null,null,null,null,null,null,null,null,null,null,null,null,null,null,null,null,null,null,null,null,null,null,null,null,54]
[null,null,null,null,null,null,null,null,null,null,null,null,null,null,null,null,null,null,null,null,null,null,null,null,null,null,null,null,null,null,null,null,55]
[null,null,null,null,null,null,null,null,null,null,null,null,null,null,null,null,null,null,null,null,null,null,null,null,null,null,null,null,null,null,null,null,56]
[null,null,null,null,null,null,null,null,null,null,null,null,null,null,null,null,null,null,null,null,null,null,null,null,null,null,null,null,null,null,null,null,57]
[null,null,null,null,null,null,null,null,null,null,null,null,null,null,null,null,null,null,null,null,null,null,null,null,null,null,null,null,null,null,null,null,58]
[null,null,null,null,null,null,null,null,null,null,null,null,null,null,null,null,null,null,null,null,null,null,null,null,null,null,null,null,null,null,null,null,59]

{"sheet":"8sınıf","index":4,"n_rows":59,"n_cols":45,"rows_kept":59,"cut":false,"hidden":false,"merged":[[0,0,0,17],[1,0,1,4],[1,7,1,8],[1,9,1,11],[1,12,1,17],[2,0,2,17],[3,0,3,4],[3,5,3,8],[3,9,3,10],[3,12,3,14],[3,15,3,17],[4,0,4,3],[4,5,4,6],[4,7,4,9],[4,11,4,12],[4,14,4,16],[5,0,5,1],[5,2,5,4],[5,5,5,17],[6,0,8,1],[6,2,8,4],[6,5,6,7],[6,8,6,17],[7,5,7,7],[7,8,7,17],[8,5,8,7],[12,0,14,1],[12,2,14,4],[12,5,12,7],[12,8,12,17],[13,5,13,7],[13,8,13,17],[14,5,14,7],[14,8,14,17],[8,8,8,17],[9,0,11,1],[9,2,11,4],[9,5,9,7],[9,8,9,17],[10,5,10,7],[10,8,10,17],[11,5,11,7],[11,8,11,17],[18,0,20,1],[18,2,20,4],[18,5,18,7],[18,8,18,17],[19,5,19,7],[19,8,19,17],[20,5,20,7],[20,8,20,17],[15,0,17,1],[15,2,17,4],[15,5,15,7],[15,8,15,17],[16,5,16,7],[16,8,16,17],[17,5,17,7],[17,8,17,17],[23,0,23,1],[23,2,23,8],[23,9,23,11],[23,12,23,13],[23,14,23,15],[23,16,23,17],[21,0,22,8],[21,9,22,11],[21,12,21,17],[22,12,22,13],[22,14,22,15],[22,16,22,17],[25,0,25,17],[26,0,26,1],[26,2,26,5],[26,6,26,9],[26,10,26,15],[26,16,26,17],[24,0,24,1],[24,2,24,8],[24,9,24,11],[24,12,24,13],[24,14,24,15],[24,16,24,17],[29,0,29,1],[29,2,29,5],[29,6,29,9],[29,10,29,15],[29,16,29,17],[30,0,30,17],[27,0,27,1],[27,2,27,5],[27,6,27,9],[27,10,27,15],[27,16,27,17],[28,0,28,1],[28,2,28,5],[28,6,28,9],[28,10,28,15],[28,16,28,17],[35,0,36,0],[35,1,35,2],[35,3,35,17],[36,1,36,2],[36,3,36,17],[32,16,32,17],[33,1,33,2],[33,3,33,4],[33,5,33,9],[33,10,33,15],[33,16,33,17],[31,0,34,0],[31,1,31,2],[31,3,31,4],[31,5,31,9],[31,10,31,15],[31,16,31,17],[32,1,32,2],[32,3,32,4],[32,5,32,9],[32,10,32,15],[39,1,39,5],[39,13,39,17],[40,1,40,5],[40,13,40,17],[34,1,34,2],[34,3,34,4],[34,5,34,9],[34,10,34,15],[34,16,34,17]]}
["2023-2024 EĞİTİM VE ÖĞRETİM YILI \nŞEHİT ABDULHAMİT KAYA İMAM HATİP ORTAOKULU",null,null,null,null,null,null,null,null,null,null,null,null,null,null,null,null,null,null,"EYLÜL","EYLÜL",{"$f":"IF(U1=$J$2,1,0)","v":0},{"$f":"V1","v":0},"Sınıf Başkan/Başkan Yardımcısı Seçimi, Sınıf Oturma Planı Hazırlama",null,null,{"$f":"MATCH(1,$W$1:$W$64,0)","v":39},{"$f":"MATCH(LARGE($W$1:$W$64,1),$W$1:$W$64,0)","v":43},null,null,null,"/ A",1,"GÖKBEN OKTAN",null,null,null,null,null,null,"EYLÜL","2023-09-01",{"$f":"EOMONTH(AP1,0)","v":"2023-09-30"},null,{"$f":"VLOOKUP($J$2,AO1:AQ10,2,0)","v":"2024-05-01"}]
["REHBERLİK HİZMETLERİ",null,null,null,null,8,"/ D","SINIFI",null,"MAYIS",null,null," AYI ÇALIŞMA RAPORU",null,null,null,null,null,null,"EKİM","EYLÜL",{"$f":"IF(U2=$J$2,1,0)","v":0},{"$f":"IF(V2=1,W1+1,0)","v":0},"Öğrenci Bilgi Formu Uygulaması",null,null,null,{"$f":"\"x\"&$AA$1&\":x\"&$AB$1","v":"x39:x43"},{"$f":"\"y\"&$AA$1&\":y\"&$AB$1","v":"y39:y43"},{"$f":"\"z\"&$AA$1&\":z\"&$AB$1","v":"z39:z43"},null,"/ B",2,"DEMET CAN",null,null,null,null,null,null,"EKİM",{"$f":"EDATE(AP1,1)","v":"2023-10-01"},{"$f":"EOMONTH(AP2,0)","v":"2023-10-31"},null,{"$f":"IFERROR(IF((AS1+1)<=VLOOKUP($J$2,$AO$1:$AQ$10,3,0),AS1+1,\"\"),\"\")","v":"2024-05-02"}]
[null,null,null,null,null,null,null,null,null,null,null,null,null,null,null,null,null,null,null,"KASIM","EYLÜL",0,{"$f":"IF(V3=1,W2+1,0)","v":0},"Salgın Hastalık - Psikoeğitim Programı Öğrenci Oturumları",null,null,null,null,null,null,null,"/ C",3,"DERYA ÇINAR",null,null,null,null,null,null,"KASIM",{"$f":"EDATE(AP2,1)","v":"2023-11-01"},"2023-11-30",null,{"$f":"IFERROR(IF((AS2+1)<=VLOOKUP($J$2,$AO$1:$AQ$10,3,0),AS2+1,\"\"),\"\")","v":"2024-05-03"}]
["SINIF/ŞUBE REHBER  ÖĞRETMENİNİN ADI SOYADI    ",null,null,null,null,"İRFAN KARA",null,null,null,"RAPOR NO",null,null,"RAPOR TARİHİ",null,null,null,null,null,null,"ARALIK","EYLÜL",0,0,"İYİ BAK İYİ YAŞA","Öz bakım becerileri sergiler.","Kişisel Güvenliğini Sağlama",null,null,null,null,null,"/ D",4,"TUBA YÜCEL",null,null,null,null,null,null,"ARALIK","2023-12-01","2023-12-31",null,"2024-05-04"]
["SINIF",null,null,null,{"$f":"CONCATENATE(F2,G2)","v":"8/ D"},"SINIF MEVCUDU",null,"KIZ",null,null,null,"ERKEK",null,null,"TOPLAM",null,null,{"$f":"SUM(K5+N5)","v":0},null,"OCAK","EYLÜL",0,0,"İLGİ VE YETENEKLERİM EL ELE","Yapabildiği ve hoşlandığı etkinliklere dayalı olarak ilgi ve yeteneklerine\nörnekler verir.","Kariyer Farkındalığı",null,null,null,null,null,"/ E",5,"EMİNE METİN",null,null,null,null,null,null,"OCAK","2024-01-01","2024-01-31",null,"2024-05-05"]
["SIRA",null,"TARİH",null,null,"ETKİNLİK ÇALIŞMALARI",null,null,null,null,null,null,null,null,null,null,null,null,null,"ŞUBAT","EKİM",0,0,"Sınıf Rehberlik Planının ve Sınıf Rehberlik Dosyasının Hazırlanması",null,null,null,null,null,null,null,"/ F",6,"ADEM DİŞÇİ",null,null,null,null,null,null,"ŞUBAT","2024-02-01","2024-02-29",null,"2024-05-06"]
[1,null,null,null,null,"ETKİNLİĞİN ADI",null,null,null,null,null,null,null,null,null,null,null,null,null,"MART","EKİM",0,0,"İLGİ VE YETENEKLERİM EL ELE=>ŞEÇTİĞİM ETKİNLİĞE","Okul içi veya okul dışındaki etkinliklere katılırken ilgi ve yeteneklerini\ndikkate alır.","Kariyer Farkındalığı",null,null,null,null,null,null,7,"EBRU BÜLBÜL",null,null,null,null,null,null,"MART","2024-03-01","2024-03-31",null,"2024-05-07"]
[null,null,null,null,null,"KAZANIM",null,null,null,null,null,null,null,null,null,null,null,null,null,"NİSAN","EKİM",0,0,"YARIN DEĞİL BUGÜN","Akademik sorumluluklarını ertelemenin sonuçlarını fark eder.","Akademik Anlayış ve Sorumluluk",null,null,null,null,null,null,8,"ERDOĞAN YILMAZ",null,null,null,null,null,null,"NİSAN","2024-04-01","2024-04-30",null,"2024-05-08"]
[null,null,null,null,null,"YETERLİLİK ALANI",null,null,null,null,null,null,null,null,null,null,null,null,null,"MAYIS","EKİM",0,0,"BEDEN İMGEM","Beden imgesini etkileyen faktörleri bilir.","Benlik Farkındalığı",null,null,null,null,null,null,9,"YUSUF KALKAN",null,null,null,null,null,null,"MAYIS","2024-05-01","2024-05-31",null,"2024-05-09"]
[2,null,null,null,null,"ETKİNLİĞİN ADI",null,null,null,null,null,null,null,null,null,null,null,null,null,"HAZİRAN","EKİM",0,0,"HANGİSİ BENİM İÇİN UYGUN?","Bir üst öğretim kurumuna ilişkin ön bilgiler edinir.","Okula ve Okulun Çevresine Uyum",null,null,null,null,null,null,10,"İRFAN KARA",null,null,null,null,null,null,"HAZİRAN","2024-06-01","2024-06-30",null,"2024-05-10"]
[null,null,null,null,null,"KAZANIM",null,null,null,null,null,null,null,null,null,null,null,null,null,null,"KASIM",0,0,"BİLGİNİN PEŞİNDE","Üst öğretim kurumlarına geçiş sınavlarıyla ilgili bilgi edinir.","Eğitsel Planlama ve Başarı",null,null,null,null,null,null,11,"EVİN KARAKAYA",null,null,null,null,null,null,null,null,null,null,"2024-05-11"]
[null,null,null,null,null,"YETERLİLİK ALANI",null,null,null,null,null,null,null,null,null,null,null,null,null,null,"KASIM",0,0,"STRES KUTUSU","Stresle baş etmede uygun yöntemler kullanır.","Duyguları Anlama ve Yönetme",null,null,null,null,null,null,12,"AYNUR ÖZDEMİR",null,null,null,null,null,null,null,null,null,null,"2024-05-12"]
[3,null,null,null,null,"ETKİNLİĞİN ADI",null,null,null,null,null,null,null,null,null,null,null,null,null,null,"KASIM",0,0,"ARA TATİL",null,null,null,null,null,null,null,null,13,"AYŞE PİRİNÇÇİ",null,null,null,null,null,null,null,null,null,null,"2024-05-13"]
[null,null,null,null,null,"KAZANIM",null,null,null,null,null,null,null,null,null,null,null,null,null,null,"KASIM",0,0,"STRES BANA ENGEL DEĞİL","Stresle baş etmede uygun yöntemler kullanır.","Duyguları Anlama ve Yönetme",null,null,null,null,null,null,14,"NERİMAN YÜKSEL",null,null,null,null,null,null,null,null,null,null,"2024-05-14"]
[null,null,null,null,null,"YETERLİLİK ALANI",null,null,null,null,null,null,null,null,null,null,null,null,null,null,"KASIM",0,0,"Sınıf Risk Haritasının Oluşturulması",null,null,null,null,null,null,null,null,15,"SUNADÜĞÜNYURDU",null,null,null,null,null,null,null,null,null,null,"2024-05-15"]
[4,null,null,null,null,"ETKİNLİĞİN ADI",null,null,null,null,null,null,null,null,null,null,null,null,null,null,"ARALIK",0,0,"SINAVLAR VE DUYGULARIM","Sınavlara ilişkin duygularını açıklar. (*)","Eğitsel Planlama ve Başarı",null,null,null,null,null,null,16,"YASİN HAKAN",null,null,null,null,null,null,null,null,null,null,"2024-05-16"]
[null,null,null,null,null,"KAZANIM",null,null,null,null,null,null,null,null,null,null,null,null,null,null,"ARALIK",0,0,"HEDEFLERİME ULAŞMAK İÇİN STRATEJİLERİM VAR MI?","Üst öğretim kurumlarına geçiş sınavlarına hazırlanmak ve başarılı olmak\niçin stratejiler geliştirir.","Eğitsel Planlama ve Başarı",null,null,null,null,null,null,17,"DERYA ALİOĞLU",null,null,null,null,null,null,null,null,null,null,"2024-05-17"]
[null,null,null,null,null,"YETERLİLİK ALANI",null,null,null,null,null,null,null,null,null,null,null,null,null,null,"ARALIK",0,0,"BENİM DEĞERLERİM","Davranışları ve değerleri arasında bağ kurar.","Benlik Farkındalığı",null,null,null,null,null,null,18,"MÜMİN KELEŞ",null,null,null,null,null,null,null,null,null,null,"2024-05-18"]
[5,null,null,null,null,"ETKİNLİĞİN ADI",null,null,null,null,null,null,null,null,null,null,null,null,null,null,"ARALIK",0,0,"MESLEK LOKANTASI","Mesleki değerlerinin farkına varır.","Kariyer Farkındalığı",null,null,null,null,null,null,19,"AYŞE AKYOL",null,null,null,null,null,null,null,null,null,null,"2024-05-19"]
[null,null,null,null,null,"KAZANIM",null,null,null,null,null,null,null,null,null,null,null,null,null,null,"ARALIK",0,0,"ADIM ADIM HEDEFE","Kısa ve uzun vadeli kariyer amaçları oluşturur.","Kariyer Hazırlığı",null,null,null,null,null,null,20,"LEYLA TEPESU",null,null,null,null,null,null,null,null,null,null,"2024-05-20"]
[null,null,null,null,null,"YETERLİLİK ALANI",null,null,null,null,null,null,null,null,null,null,null,null,null,null,"OCAK",0,0,"YARDIM ARAYIŞI","İhtiyaç duyduğunda yardım arar.","Kişiler Arası Beceriler",null,null,null,null,null,null,21,"YELİZ FİTOZ",null,null,null,null,null,null,null,null,null,null,{"$f":"IFERROR(IF((AS20+1)<=VLOOKUP($J$2,$AO$1:$AQ$10,3,0),AS20+1,\"\"),\"\")","v":"2024-05-21"}]
["UYGULANAN TEST VE ANKETLER",null,null,null,null,null,null,null,null,"UYGULAMA TARİHİ",null,null,"UYGULANAN ÖĞRENCİ SAYISI",null,null,null,null,null,null,null,"OCAK",0,0,"ÖĞRENİYORUM AMA NASIL?","Öğrenme ve verimli çalışma stratejilerini açıklar.","Eğitsel Planlama ve Başarı",null,null,null,null,null,null,22,"GÜLİSTAN TEKTAŞ",null,null,null,null,null,null,null,null,null,null,"2024-05-22"]
[null,null,null,null,null,null,null,null,null,null,null,null,"KIZ",null," ERKEK",null,"TOPLAM",null,null,null,"OCAK",0,0,"GÜÇLÜ ÖĞRENİYORUM","Belleğini güçlendirecek stratejileri kullanır.","Eğitsel Planlama ve Başarı",null,null,null,null,null,null,23,"CEYDA AZAKLI",null,null,null,null,null,null,null,null,null,null,"2024-05-23"]
[1,null,null,null,null,null,null,null,null,null,null,null,null,null,null,null,{"$f":"SUM(M24:P24)","v":0},null,null,null,"OCAK",0,0,"İlk Dönem Sınıf Rehberlik Faaliyet Raporu Hazırlanması",null,null,null,null,null,null,null,null,24,"ZEHRA DURDU",null,null,null,null,null,null,null,null,null,null,"2024-05-24"]
[2,null,null,null,null,null,null,null,null,null,null,null,null,null,null,null,null,null,null,null,"OCAK",0,0,"YARI YIL TATİLİ",null,null,null,null,null,null,null,null,25,"SAİT AFŞAR",null,null,null,null,null,null,null,null,null,null,"2024-05-25"]
["VELİLERLE YAPILAN GÖRÜŞMELER",null,null,null,null,null,null,null,null,null,null,null,null,null,null,null,null,null,null,null,"ŞUBAT",0,0,"YARI YIL TATİLİ",null,null,null,null,null,null,null,null,26,"HİLAL SEZER",null,null,null,null,null,null,null,null,null,null,"2024-05-26"]
["SIRA",null,"VELİ",null,null,null,"ÖĞRENCİSİ",null,null,null,"GÖRÜŞME KONUSU",null,null,null,null,null,"TARİH",null,null,null,"ŞUBAT",0,0,"İYİ DÜŞÜN İYİ OLSUN","İyi oluşunu destekleyen duygu ve davranışları fark eder.","Benlik Farkındalığı",null,null,null,null,null,null,27,null,null,null,null,null,null,null,null,null,null,null,{"$f":"IFERROR(IF((AS26+1)<=VLOOKUP($J$2,$AO$1:$AQ$10,3,0),AS26+1,\"\"),\"\")","v":"2024-05-27"}]
[1,null,null,null,null,null,null,null,null,null,null,null,null,null,null,null,null,null,null,null,"ŞUBAT",0,0,"DUYGULARA YEŞİL IŞIK YAK","Öğrenme ortamlarındaki duygularını düzenler.","Akademik Anlayış ve Sorumluluk",null,null,null,null,null,null,28,null,null,null,null,null,null,null,null,null,null,null,"2024-05-28"]
[2,null,null,null,null,null,null,null,null,null,null,null,null,null,null,null,null,null,null,null,"ŞUBAT",0,0,"KARİYERİM, AMAÇLARIM, BEKLENTİLERİM","Kariyer amaçları ile kariyer beklentilerini karşılaştırır.","Kariyer Hazırlığı",null,null,null,null,null,null,29,null,null,null,null,null,null,null,null,null,null,null,"2024-05-29"]
[3,null,null,null,null,null,null,null,null,null,null,null,null,null,null,null,null,null,null,null,"MART",0,0,"BASKIYA KARŞI YOLLARIM VAR","Akran baskısıyla baş etmede uygun yolları kullanır.","Kariyer Hazırlığı",null,null,null,null,null,null,30,null,null,null,null,null,null,null,null,null,null,null,"2024-05-30"]
["ÖĞRENCİLERLE YAPILAN GÖRÜŞMELER",null,null,null,null,null,null,null,null,null,null,null,null,null,null,null,null,null,null,null,"MART",0,0,"KENDİ GÜVENLİK AĞIMI ÖRÜYORUM","Bilişim teknolojileri konusunda kendini yönetir.","Kişisel Güvenliğini Sağlama",null,null,null,null,null,null,31,null,null,null,null,null,null,null,null,null,null,null,"2024-05-31"]
["ÖĞRENCİNİN","SIRA",null,"NO",null," ADI VE SOYADI",null,null,null,null,"GÖRÜŞME KONUSU",null,null,null,null,null,"TARİH",null,null,null,"MART",0,0,"BİRAZ ZAMAN, BİRAZ  ÇABA ","Yaşamda karşılaşılan zorlukların çaba ve zaman ile üstesinden\ngelinebileceğini fark eder.","Karar Verme",null,null,null,null,null,null,32,null,null,null,null,null,null,null,null,null,null,null,""]
[null,1,null,null,null,null,null,null,null,null,null,null,null,null,null,null,null,null,null,null,"MART",0,0,"UYGUN LİSE ARANIYOR","Kendi özellikleriyle seçmek istediği lise türlerinin özelliklerini ilişkilendirir.","Kariyer Planlama",null,null,null,null,null,null,33,null,null,null,null,null,null,null,null,null,null,null,""]
[null,2,null,null,null,null,null,null,null,null,null,null,null,null,null,null,null,null,null,null,"MART",0,0,"SEÇİM YOLCULUĞUM","Kendi özellikleriyle seçmek istediği lise türlerinin özelliklerini ilişkilendirir.","Kariyer Planlama",null,null,null,null,null,null,34]
[null,3,null,null,null,null,null,null,null,null,null,null,null,null,null,null,null,null,null,null,"NİSAN",0,0,"ZORLUKLAR KARŞISINDA KARAKTER GÜÇLERİMLE GÜÇLÜYÜM","Sahip olduğu karakter güçlerini zorluklar karşısında kullanmayı bilir.","Benlik Farkındalığı",null,null,null,null,null,null,35]
["DİĞER ÇALIŞMALAR",1,null,null,null,null,null,null,null,null,null,null,null,null,null,null,null,null,null,null,"NİSAN",0,0,"ARA TATİL",null,null,null,null,null,null,null,null,36]
[null,2,null,null,null,null,null,null,null,null,null,null,null,null,null,null,null,null,null,null,"NİSAN",0,0,"GÖNÜLLÜ OLMAK GEREK","Toplum için gönüllü çalışmanın gerekliliğini açıklar.","Kişiler Arası Beceriler",null,null,null,null,null,null,37]
[null,null,null,null,null,null,null,null,null,null,null,null,null,null,null,null,null,null,null,null,"NİSAN",0,0,"HAYAT BOYU ÖĞRENME NEDEN GEREKLİ?","Öğrenmenin hayat boyu devam ettiğini fark eder.","Akademik Anlayış ve Sorumluluk",null,null,null,null,null,null,38]
[null,null,null,null,null,null,null,null,null,null,null,null,null,null,null,null,null,null,null,null,"MAYIS",1,1,"HANGİ LİSE GÖRÜŞÜN NE?","Lise türü seçimine ilişkin kararını verirken kendi görüşleri ile aile ve yakın çevresinin\ngörüşlerini karşılaştırır.","Kariyer Planlama",null,null,null,null,null,null,39]
[null,{"$f":"F4","v":"İRFAN KARA"},null,null,null,null,null,null,null,null,null,null,null,"Hasan AKPINAR",null,null,null,null,null,null,"MAYIS",1,2,"HANGİ LİSE GÖRÜŞÜN NE?","Lise türü seçimine ilişkin kararını verirken kendi görüşleri ile aile ve yakın çevresinin\ngörüşlerini karşılaştırır.","Kariyer Planlama",null,null,null,null,null,null,40]
[null,"Sınıf/Şube Rehber Öğretmeni",null,null,null,null,null,null,null,null,null,null,null,"Okul Müdürü",null,null,null,null,null,null,"MAYIS",1,3,"KARAR VERME SÜRECİM","Lise türü seçimi yaparken karar verme becerisini kullanır.","Kariyer Planlama",null,null,null,null,null,null,41]
[null,null,null,null,null,null,null,null,null,null,null,null,null,null,null,null,null,null,null,null,"MAYIS",1,4,"KARARINI VER, SEÇİMİNİ YAP","Lise türü seçimi yaparken karar verme becerisini kullanır.","Kariyer Planlama",null,null,null,null,null,null,42]
[null,null,null,null,null,null,null,null,null,null,null,null,null,null,null,null,null,null,null,null,"MAYIS",1,5,"Rehberlik İhtiyaçları Belirleme Anketi (RİBA) Uygulaması",null,null,null,null,null,null,null,null,43]
[null,null,null,null,null,null,null,null,null,null,null,null,null,null,null,null,null,null,null,null,"HAZİRAN",0,0,"KARAR TERAZİSİ/EMİN MİSİNİZ? SON KARARINIZ MI?","Lise türüne ilişkin kararını tekrar değerlendirir.","Kariyer Planlama",null,null,null,null,null,null,44]
[null,null,null,null,null,null,null,null,null,null,null,null,null,null,null,null,null,null,null,null,"HAZİRAN",0,0,"DÜŞÜN, HİSSET, YAZ!","Bir üst öğretim kurumuna geçiş sürecine yönelik duygu ve düşüncelerini ifade\neder.","Kariyer Planlama",null,null,null,null,null,null,45]
[null,null,null,null,null,null,null,null,null,null,null,null,null,null,null,null,null,null,null,null,"HAZİRAN",0,0,"NELERİ HATIRLIYORUM?","Sınıf rehberlik programı etkinliklerine/yaşantılarına ilişkin duygu ve\ndüşüncelerini yansıtır.","Ortak",null,null,null,null,null,null,46]
[null,null,null,null,null,null,null,null,null,null,null,null,null,null,null,null,null,null,null,null,"HAZİRAN",0,0,"RPD Hizmetleri Yürütme Komisyonu Sene Sonu Toplantısı",null,null,null,null,null,null,null,null,47]
[null,null,null,null,null,null,null,null,null,null,null,null,null,null,null,null,null,null,null,null,"HAZİRAN",0,0,"İkinci Dönem Sınıf Rehberlik Faaliyet Raporu Hazırlanması",null,null,null,null,null,null,null,null,48]
[null,null,null,null,null,null,null,null,null,null,null,null,null,null,null,null,null,null,null,null,null,null,null,null,null,null,null,null,null,null,null,null,49]
[null,null,null,null,null,null,null,null,null,null,null,null,null,null,null,null,null,null,null,null,null,null,null,null,null,null,null,null,null,null,null,null,50]
[null,null,null,null,null,null,null,null,null,null,null,null,null,null,null,null,null,null,null,null,null,null,null,null,null,null,null,null,null,null,null,null,51]
[null,null,null,null,null,null,null,null,null,null,null,null,null,null,null,null,null,null,null,null,null,null,null,null,null,null,null,null,null,null,null,null,52]
[null,null,null,null,null,null,null,null,null,null,null,null,null,null,null,null,null,null,null,null,null,null,null,null,null,null,null,null,null,null,null,null,53]
[null,null,null,null,null,null,null,null,null,null,null,null,null,null,null,null,null,null,null,null,null,null,null,null,null,null,null,null,null,null,null,null,54]
[null,null,null,null,null,null,null,null,null,null,null,null,null,null,null,null,null,null,null,null,null,null,null,null,null,null,null,null,null,null,null,null,55]
[null,null,null,null,null,null,null,null,null,null,null,null,null,null,null,null,null,null,null,null,null,null,null,null,null,null,null,null,null,null,null,null,56]
[null,null,null,null,null,null,null,null,null,null,null,null,null,null,null,null,null,null,null,null,null,null,null,null,null,null,null,null,null,null,null,null,57]
[null,null,null,null,null,null,null,null,null,null,null,null,null,null,null,null,null,null,null,null,null,null,null,null,null,null,null,null,null,null,null,null,58]
[null,null,null,null,null,null,null,null,null,null,null,null,null,null,null,null,null,null,null,null,null,null,null,null,null,null,null,null,null,null,null,null,59]

{"sheet":"Sayfa1","index":5,"n_rows":4,"n_cols":2,"rows_kept":4,"cut":false,"hidden":false,"merged":[]}
["KAZANIM","ETKİNLİK ADI"]
["KARAR TERAZİSİ/EMİN MİSİNİZ? SON KARARINIZ MI?","Lise türüne ilişkin kararını tekrar değerlendirir."]
["DÜŞÜN, HİSSET, YAZ!","Bir üst öğretim kurumuna geçiş sürecine yönelik duygu ve düşüncelerini ifade\neder."]
["NELERİ HATIRLIYORUM?","Sınıf rehberlik programı etkinliklerine/yaşantılarına ilişkin duygu ve\ndüşüncelerini yansıtır."]